Workbook

Sheet StudentsNames
A1: Ser | B1: NameEn | C1: NameAr | D1: Student # | E1: section | F1: Stream
A2: =IF(B2="","",MAX($A$1:A1)+1) -> 1 | B2: Ali 1 | C2: علي 1 | D2: 2342 | E2: 12A | F2: 12 Adv
A3: =IF(B3="","",MAX($A$1:A2)+1) -> 2 | B3: Ali 2 | C3: علي 2 | D3: 2345 | E3: 12A | F3: 12 Adv
A4: =IF(B4="","",MAX($A$1:A3)+1) -> 3 | B4: Ali 3 | C4: علي 3 | D4: 2348 | E4: 12A | F4: 12 Adv
A5: =IF(B5="","",MAX($A$1:A4)+1) -> 4 | B5: Ali 4 | C5: علي 4 | D5: 2351 | E5: 12A | F5: 12 Adv
A6: =IF(B6="","",MAX($A$1:A5)+1) -> 5 | B6: Ali 5 | C6: علي 5 | D6: 2354 | E6: 12A | F6: 12 Adv
A7: =IF(B7="","",MAX($A$1:A6)+1) -> 6 | B7: Ali 6 | C7: علي 6 | D7: 2357 | E7: 12A | F7: 12 Adv
A8: =IF(B8="","",MAX($A$1:A7)+1) -> 7 | B8: Ali 7 | C8: علي 7 | D8: 2360 | E8: 12A | F8: 12 Adv
A9: =IF(B9="","",MAX($A$1:A8)+1) -> 8 | B9: Ali 8 | C9: علي 8 | D9: 2363 | E9: 12A | F9: 12 Adv
A10: =IF(B10="","",MAX($A$1:A9)+1) -> 9 | B10: Ali 9 | C10: علي 9 | D10: 2366 | E10: 12A | F10: 12 Adv
A11: =IF(B11="","",MAX($A$1:A10)+1) -> 10 | B11: Ali 10 | C11: علي 10 | D11: 2369 | E11: 12A | F11: 12 Adv
A12: =IF(B12="","",MAX($A$1:A11)+1) -> 11 | B12: Ali 11 | C12: علي 11 | D12: 2372 | E12: 12A | F12: 12 Adv
A13: =IF(B13="","",MAX($A$1:A12)+1) -> 12 | B13: Ali 12 | C13: علي 12 | D13: 2375 | E13: 12A | F13: 12 Adv
A14: =IF(B14="","",MAX($A$1:A13)+1) -> 13 | B14: Ali 13 | C14: علي 13 | D14: 2378 | E14: 12B | F14: 12 Gen
A15: =IF(B15="","",MAX($A$1:A14)+1) -> 14 | B15: Ali 14 | C15: علي 14 | D15: 2381 | E15: 12B | F15: 12 Gen
A16: =IF(B16="","",MAX($A$1:A15)+1) -> 15 | B16: Ali 15 | C16: علي 15 | D16: 2384 | E16: 12B | F16: 12 Gen
A17: =IF(B17="","",MAX($A$1:A16)+1) -> 16 | B17: Ali 16 | C17: علي 16 | D17: 2387 | E17: 12B | F17: 12 Gen
A18: =IF(B18="","",MAX($A$1:A17)+1) -> 17 | B18: Ali 17 | C18: علي 17 | D18: 2390 | E18: 12B | F18: 12 Gen
A19: =IF(B19="","",MAX($A$1:A18)+1) -> 18 | B19: Ali 18 | C19: علي 18 | D19: 2393 | E19: 12B | F19: 12 Gen
A20: =IF(B20="","",MAX($A$1:A19)+1) -> 19 | B20: Ali 19 | C20: علي 19 | D20: 2396 | E20: 12B | F20: 12 Gen
A21: =IF(B21="","",MAX($A$1:A20)+1) -> 20 | B21: Ali 20 | C21: علي 20 | D21: 2399 | E21: 12B | F21: 12 Gen
A22: =IF(B22="","",MAX($A$1:A21)+1) -> 
A23: =IF(B23="","",MAX($A$1:A22)+1) -> 
A24: =IF(B24="","",MAX($A$1:A23)+1) -> 
A25: =IF(B25="","",MAX($A$1:A24)+1) -> 
A26: =IF(B26="","",MAX($A$1:A25)+1) -> 
A27: =IF(B27="","",MAX($A$1:A26)+1) -> 
A28: =IF(B28="","",MAX($A$1:A27)+1) -> 
A29: =IF(B29="","",MAX($A$1:A28)+1) -> 
A30: =IF(B30="","",MAX($A$1:A29)+1) -> 
A31: =IF(B31="","",MAX($A$1:A30)+1) -> 
A32: =IF(B32="","",MAX($A$1:A31)+1) -> 
A33: =IF(B33="","",MAX($A$1:A32)+1) -> 
A34: =IF(B34="","",MAX($A$1:A33)+1) -> 
A35: =IF(B35="","",MAX($A$1:A34)+1) -> 
A36: =IF(B36="","",MAX($A$1:A35)+1) -> 
A37: =IF(B37="","",MAX($A$1:A36)+1) -> 
A38: =IF(B38="","",MAX($A$1:A37)+1) -> 
A39: =IF(B39="","",MAX($A$1:A38)+1) -> 
A40: =IF(B40="","",MAX($A$1:A39)+1) -> 
A41: =IF(B41="","",MAX($A$1:A40)+1) -> 
A42: =IF(B42="","",MAX($A$1:A41)+1) -> 
A43: =IF(B43="","",MAX($A$1:A42)+1) -> 
A44: =IF(B44="","",MAX($A$1:A43)+1) -> 
A45: =IF(B45="","",MAX($A$1:A44)+1) -> 
A46: =IF(B46="","",MAX($A$1:A45)+1) -> 
A47: =IF(B47="","",MAX($A$1:A46)+1) -> 
A48: =IF(B48="","",MAX($A$1:A47)+1) -> 
A49: =IF(B49="","",MAX($A$1:A48)+1) -> 
A50: =IF(B50="","",MAX($A$1:A49)+1) -> 
A51: =IF(B51="","",MAX($A$1:A50)+1) -> 
A52: =IF(B52="","",MAX($A$1:A51)+1) -> 
A53: =IF(B53="","",MAX($A$1:A52)+1) -> 
A54: =IF(B54="","",MAX($A$1:A53)+1) -> 
A55: =IF(B55="","",MAX($A$1:A54)+1) -> 
A56: =IF(B56="","",MAX($A$1:A55)+1) -> 
A57: =IF(B57="","",MAX($A$1:A56)+1) -> 
A58: =IF(B58="","",MAX($A$1:A57)+1) -> 
A59: =IF(B59="","",MAX($A$1:A58)+1) -> 
A60: =IF(B60="","",MAX($A$1:A59)+1) -> 
A61: =IF(B61="","",MAX($A$1:A60)+1) -> 
A62: =IF(B62="","",MAX($A$1:A61)+1) -> 
A63: =IF(B63="","",MAX($A$1:A62)+1) -> 
A64: =IF(B64="","",MAX($A$1:A63)+1) -> 
A65: =IF(B65="","",MAX($A$1:A64)+1) -> 
A66: =IF(B66="","",MAX($A$1:A65)+1) -> 
A67: =IF(B67="","",MAX($A$1:A66)+1) -> 
A68: =IF(B68="","",MAX($A$1:A67)+1) -> 
A69: =IF(B69="","",MAX($A$1:A68)+1) -> 
A70: =IF(B70="","",MAX($A$1:A69)+1) -> 
A71: =IF(B71="","",MAX($A$1:A70)+1) -> 
A72: =IF(B72="","",MAX($A$1:A71)+1) -> 
A73: =IF(B73="","",MAX($A$1:A72)+1) -> 
A74: =IF(B74="","",MAX($A$1:A73)+1) -> 
A75: =IF(B75="","",MAX($A$1:A74)+1) -> 
A76: =IF(B76="","",MAX($A$1:A75)+1) -> 
A77: =IF(B77="","",MAX($A$1:A76)+1) -> 
A78: =IF(B78="","",MAX($A$1:A77)+1) -> 
A79: =IF(B79="","",MAX($A$1:A78)+1) -> 
A80: =IF(B80="","",MAX($A$1:A79)+1) -> 
A81: =IF(B81="","",MAX($A$1:A80)+1) -> 
A82: =IF(B82="","",MAX($A$1:A81)+1) -> 
A83: =IF(B83="","",MAX($A$1:A82)+1) -> 
A84: =IF(B84="","",MAX($A$1:A83)+1) -> 
A85: =IF(B85="","",MAX($A$1:A84)+1) -> 
A86: =IF(B86="","",MAX($A$1:A85)+1) -> 
A87: =IF(B87="","",MAX($A$1:A86)+1) -> 
A88: =IF(B88="","",MAX($A$1:A87)+1) -> 
A89: =IF(B89="","",MAX($A$1:A88)+1) -> 
A90: =IF(B90="","",MAX($A$1:A89)+1) -> 
A91: =IF(B91="","",MAX($A$1:A90)+1) -> 
A92: =IF(B92="","",MAX($A$1:A91)+1) -> 
A93: =IF(B93="","",MAX($A$1:A92)+1) -> 
A94: =IF(B94="","",MAX($A$1:A93)+1) -> 
A95: =IF(B95="","",MAX($A$1:A94)+1) -> 
A96: =IF(B96="","",MAX($A$1:A95)+1) -> 
A97: =IF(B97="","",MAX($A$1:A96)+1) -> 
A98: =IF(B98="","",MAX($A$1:A97)+1) -> 
A99: =IF(B99="","",MAX($A$1:A98)+1) -> 
A100: =IF(B100="","",MAX($A$1:A99)+1) -> 
A101: =IF(B101="","",MAX($A$1:A100)+1) -> 
A102: =IF(B102="","",MAX($A$1:A101)+1) -> 
A103: =IF(B103="","",MAX($A$1:A102)+1) -> 
A104: =IF(B104="","",MAX($A$1:A103)+1) -> 
A105: =IF(B105="","",MAX($A$1:A104)+1) -> 
A106: =IF(B106="","",MAX($A$1:A105)+1) -> 
A107: =IF(B107="","",MAX($A$1:A106)+1) -> 
A108: =IF(B108="","",MAX($A$1:A107)+1) -> 
A109: =IF(B109="","",MAX($A$1:A108)+1) -> 
A110: =IF(B110="","",MAX($A$1:A109)+1) -> 
A111: =IF(B111="","",MAX($A$1:A110)+1) -> 
A112: =IF(B112="","",MAX($A$1:A111)+1) -> 
A113: =IF(B113="","",MAX($A$1:A112)+1) -> 
A114: =IF(B114="","",MAX($A$1:A113)+1) -> 
A115: =IF(B115="","",MAX($A$1:A114)+1) -> 
A116: =IF(B116="","",MAX($A$1:A115)+1) -> 
A117: =IF(B117="","",MAX($A$1:A116)+1) -> 
A118: =IF(B118="","",MAX($A$1:A117)+1) -> 
A119: =IF(B119="","",MAX($A$1:A118)+1) -> 
A120: =IF(B120="","",MAX($A$1:A119)+1) -> 
A121: =IF(B121="","",MAX($A$1:A120)+1) -> 
A122: =IF(B122="","",MAX($A$1:A121)+1) -> 
A123: =IF(B123="","",MAX($A$1:A122)+1) -> 
A124: =IF(B124="","",MAX($A$1:A123)+1) -> 
A125: =IF(B125="","",MAX($A$1:A124)+1) -> 
A126: =IF(B126="","",MAX($A$1:A125)+1) -> 
A127: =IF(B127="","",MAX($A$1:A126)+1) -> 
A128: =IF(B128="","",MAX($A$1:A127)+1) -> 
A129: =IF(B129="","",MAX($A$1:A128)+1) -> 
A130: =IF(B130="","",MAX($A$1:A129)+1) -> 
A131: =IF(B131="","",MAX($A$1:A130)+1) -> 
A132: =IF(B132="","",MAX($A$1:A131)+1) -> 
A133: =IF(B133="","",MAX($A$1:A132)+1) -> 
A134: =IF(B134="","",MAX($A$1:A133)+1) -> 
A135: =IF(B135="","",MAX($A$1:A134)+1) -> 
A136: =IF(B136="","",MAX($A$1:A135)+1) -> 
A137: =IF(B137="","",MAX($A$1:A136)+1) -> 
A138: =IF(B138="","",MAX($A$1:A137)+1) -> 
A139: =IF(B139="","",MAX($A$1:A138)+1) -> 
A140: =IF(B140="","",MAX($A$1:A139)+1) -> 
A141: =IF(B141="","",MAX($A$1:A140)+1) -> 
A142: =IF(B142="","",MAX($A$1:A141)+1) -> 
A143: =IF(B143="","",MAX($A$1:A142)+1) -> 
A144: =IF(B144="","",MAX($A$1:A143)+1) -> 
A145: =IF(B145="","",MAX($A$1:A144)+1) -> 
A146: =IF(B146="","",MAX($A$1:A145)+1) -> 
A147: =IF(B147="","",MAX($A$1:A146)+1) -> 
A148: =IF(B148="","",MAX($A$1:A147)+1) -> 
A149: =IF(B149="","",MAX($A$1:A148)+1) -> 
A150: =IF(B150="","",MAX($A$1:A149)+1) -> 
A151: =IF(B151="","",MAX($A$1:A150)+1) -> 
A152: =IF(B152="","",MAX($A$1:A151)+1) -> 
A153: =IF(B153="","",MAX($A$1:A152)+1) -> 
A154: =IF(B154="","",MAX($A$1:A153)+1) -> 
A155: =IF(B155="","",MAX($A$1:A154)+1) -> 
A156: =IF(B156="","",MAX($A$1:A155)+1) -> 
A157: =IF(B157="","",MAX($A$1:A156)+1) -> 
A158: =IF(B158="","",MAX($A$1:A157)+1) -> 
A159: =IF(B159="","",MAX($A$1:A158)+1) -> 
A160: =IF(B160="","",MAX($A$1:A159)+1) -> 
A161: =IF(B161="","",MAX($A$1:A160)+1) -> 
A162: =IF(B162="","",MAX($A$1:A161)+1) -> 
A163: =IF(B163="","",MAX($A$1:A162)+1) -> 
A164: =IF(B164="","",MAX($A$1:A163)+1) -> 
A165: =IF(B165="","",MAX($A$1:A164)+1) -> 
A166: =IF(B166="","",MAX($A$1:A165)+1) -> 
A167: =IF(B167="","",MAX($A$1:A166)+1) -> 
A168: =IF(B168="","",MAX($A$1:A167)+1) -> 
A169: =IF(B169="","",MAX($A$1:A168)+1) -> 
A170: =IF(B170="","",MAX($A$1:A169)+1) -> 
A171: =IF(B171="","",MAX($A$1:A170)+1) -> 
A172: =IF(B172="","",MAX($A$1:A171)+1) -> 
A173: =IF(B173="","",MAX($A$1:A172)+1) -> 
A174: =IF(B174="","",MAX($A$1:A173)+1) -> 
A175: =IF(B175="","",MAX($A$1:A174)+1) -> 
A176: =IF(B176="","",MAX($A$1:A175)+1) -> 
A177: =IF(B177="","",MAX($A$1:A176)+1) -> 
A178: =IF(B178="","",MAX($A$1:A177)+1) -> 
A179: =IF(B179="","",MAX($A$1:A178)+1) -> 
A180: =IF(B180="","",MAX($A$1:A179)+1) -> 
A181: =IF(B181="","",MAX($A$1:A180)+1) -> 
A182: =IF(B182="","",MAX($A$1:A181)+1) -> 
A183: =IF(B183="","",MAX($A$1:A182)+1) -> 
A184: =IF(B184="","",MAX($A$1:A183)+1) -> 
A185: =IF(B185="","",MAX($A$1:A184)+1) -> 
A186: =IF(B186="","",MAX($A$1:A185)+1) -> 
A187: =IF(B187="","",MAX($A$1:A186)+1) -> 
A188: =IF(B188="","",MAX($A$1:A187)+1) -> 
A189: =IF(B189="","",MAX($A$1:A188)+1) -> 
A190: =IF(B190="","",MAX($A$1:A189)+1) -> 
A191: =IF(B191="","",MAX($A$1:A190)+1) -> 
A192: =IF(B192="","",MAX($A$1:A191)+1) -> 
A193: =IF(B193="","",MAX($A$1:A192)+1) -> 
A194: =IF(B194="","",MAX($A$1:A193)+1) -> 
A195: =IF(B195="","",MAX($A$1:A194)+1) -> 
A196: =IF(B196="","",MAX($A$1:A195)+1) -> 
A197: =IF(B197="","",MAX($A$1:A196)+1) -> 
A198: =IF(B198="","",MAX($A$1:A197)+1) -> 
A199: =IF(B199="","",MAX($A$1:A198)+1) -> 
A200: =IF(B200="","",MAX($A$1:A199)+1) -> 
... 1812 more rows

Sheet ByStudName
C7: اسم الطالب | D7: Ali 1
C8: Student Name
A11: student # | B11: School ID | C11: School Name | D11: Section | E11: Stream | G11: Name English | H11: Test Subject | I11: Test Score | K11: Judgment | O11: العلامة المعيارية Standard Score | Q11: وصف العلامة المعيارية Description
A12: =IFERROR(_xlfn.XLOOKUP(TRIM(G12),[1]StudentsNames!$B$2:$B$2012,[1]StudentsNames!$D$2:$D$2012,,0),"") -> 2399 | B12: 507 | C12: Al Abbas Bin Abdul Muttalib | D12: =IFERROR(_xlfn.XLOOKUP(TRIM(G12),[1]StudentsNames!$B$2:$B$2012,[1]StudentsNames!$E$2:$E$2012,,0),"") -> 12B | E12: 12 Gen | F12: =IFERROR(_xlfn.XLOOKUP(TRIM(G12),[1]StudentsNames!$B$2:$B$2012,[1]StudentsNames!$F$2:$F$2012,,0),"") -> 12 Gen | G12: Ali 20 | H12: Arabic | I12: 775 | J12: =SUBSTITUTE(SUBSTITUTE(I12,CHAR(13),""),CHAR(10),"") -> 775 | K12: =IFERROR(_xlfn.XLOOKUP(I12,$P$12:$P$14,$Q$12:$Q$14,,1),I12) -> لا يلبي التوقعات | O12: 0 - 1074 | P12: 1075 | Q12: لا يلبي التوقعات
A13: =IFERROR(_xlfn.XLOOKUP(TRIM(G13),[1]StudentsNames!$B$2:$B$2012,[1]StudentsNames!$D$2:$D$2012,,0),"") -> 2342 | B13: 507 | C13: Al Abbas Bin Abdul Muttalib | D13: =IFERROR(_xlfn.XLOOKUP(TRIM(G13),[1]StudentsNames!$B$2:$B$2012,[1]StudentsNames!$E$2:$E$2012,,0),"") -> 12A | E13: 12 Adv | F13: =IFERROR(_xlfn.XLOOKUP(TRIM(G13),[1]StudentsNames!$B$2:$B$2012,[1]StudentsNames!$F$2:$F$2012,,0),"") -> 12 Adv | G13: Ali 1 | H13: Arabic | I13: 1750 | J13: =SUBSTITUTE(SUBSTITUTE(I13,CHAR(13),""),CHAR(10),"") -> 1750 | K13: يفوق التوقعات | O13: 1075 - 1274 | P13: 1275 | Q13: يلبي التوقعات
A14: =IFERROR(_xlfn.XLOOKUP(TRIM(G14),[1]StudentsNames!$B$2:$B$2012,[1]StudentsNames!$D$2:$D$2012,,0),"") -> 2342 | B14: 507 | C14: Al Abbas Bin Abdul Muttalib | D14: =IFERROR(_xlfn.XLOOKUP(TRIM(G14),[1]StudentsNames!$B$2:$B$2012,[1]StudentsNames!$E$2:$E$2012,,0),"") -> 12A | E14: 12 Adv | F14: =IFERROR(_xlfn.XLOOKUP(TRIM(G14),[1]StudentsNames!$B$2:$B$2012,[1]StudentsNames!$F$2:$F$2012,,0),"") -> 12 Adv | G14: Ali 1 | H14: Chemistry | I14: 1450 | J14: 1450 | K14: يفوق التوقعات | O14: 1275 - 2000 | P14: 2000 | Q14: يفوق التوقعات
A15: =IFERROR(_xlfn.XLOOKUP(TRIM(G15),[1]StudentsNames!$B$2:$B$2012,[1]StudentsNames!$D$2:$D$2012,,0),"") -> 2342 | B15: 507 | C15: Al Abbas Bin Abdul Muttalib | D15: =IFERROR(_xlfn.XLOOKUP(TRIM(G15),[1]StudentsNames!$B$2:$B$2012,[1]StudentsNames!$E$2:$E$2012,,0),"") -> 12A | E15: 12 Adv | F15: =IFERROR(_xlfn.XLOOKUP(TRIM(G15),[1]StudentsNames!$B$2:$B$2012,[1]StudentsNames!$F$2:$F$2012,,0),"") -> 12 Adv | G15: Ali 1 | H15: English | I15: 1200 | J15: 1200 | K15: يلبي التوقعات | O15: Absent | Q15: Absent
A16: =IFERROR(_xlfn.XLOOKUP(TRIM(G16),[1]StudentsNames!$B$2:$B$2012,[1]StudentsNames!$D$2:$D$2012,,0),"") -> 2342 | B16: 507 | C16: Al Abbas Bin Abdul Muttalib | D16: =IFERROR(_xlfn.XLOOKUP(TRIM(G16),[1]StudentsNames!$B$2:$B$2012,[1]StudentsNames!$E$2:$E$2012,,0),"") -> 12A | E16: 12 Adv | F16: =IFERROR(_xlfn.XLOOKUP(TRIM(G16),[1]StudentsNames!$B$2:$B$2012,[1]StudentsNames!$F$2:$F$2012,,0),"") -> 12 Adv | G16: Ali 1 | H16: Math | I16: 1800 | J16: 1800 | K16: يفوق التوقعات
A17: =IFERROR(_xlfn.XLOOKUP(TRIM(G17),[1]StudentsNames!$B$2:$B$2012,[1]StudentsNames!$D$2:$D$2012,,0),"") -> 2342 | B17: 507 | C17: Al Abbas Bin Abdul Muttalib | D17: =IFERROR(_xlfn.XLOOKUP(TRIM(G17),[1]StudentsNames!$B$2:$B$2012,[1]StudentsNames!$E$2:$E$2012,,0),"") -> 12A | E17: 12 Adv | F17: =IFERROR(_xlfn.XLOOKUP(TRIM(G17),[1]StudentsNames!$B$2:$B$2012,[1]StudentsNames!$F$2:$F$2012,,0),"") -> 12 Adv | G17: Ali 1 | H17: Physics | I17: 400 | J17: 400 | K17: لا يلبي التوقعات
A18: =IFERROR(_xlfn.XLOOKUP(TRIM(G18),[1]StudentsNames!$B$2:$B$2012,[1]StudentsNames!$D$2:$D$2012,,0),"") -> 2369 | B18: 507 | C18: Al Abbas Bin Abdul Muttalib | D18: =IFERROR(_xlfn.XLOOKUP(TRIM(G18),[1]StudentsNames!$B$2:$B$2012,[1]StudentsNames!$E$2:$E$2012,,0),"") -> 12A | E18: 12 Adv | F18: =IFERROR(_xlfn.XLOOKUP(TRIM(G18),[1]StudentsNames!$B$2:$B$2012,[1]StudentsNames!$F$2:$F$2012,,0),"") -> 12 Adv | G18: Ali 10 | H18: English | I18: 725 | J18: 725 | K18: لا يلبي التوقعات | O18: الاعمدة Students # و Section سيتم تعبئتها تلقائياُ
A19: =IFERROR(_xlfn.XLOOKUP(TRIM(G19),[1]StudentsNames!$B$2:$B$2012,[1]StudentsNames!$D$2:$D$2012,,0),"") -> 2372 | B19: 507 | C19: Al Abbas Bin Abdul Muttalib | D19: =IFERROR(_xlfn.XLOOKUP(TRIM(G19),[1]StudentsNames!$B$2:$B$2012,[1]StudentsNames!$E$2:$E$2012,,0),"") -> 12A | E19: 12 Adv | F19: =IFERROR(_xlfn.XLOOKUP(TRIM(G19),[1]StudentsNames!$B$2:$B$2012,[1]StudentsNames!$F$2:$F$2012,,0),"") -> 12 Adv | G19: Ali 11 | H19: English | I19: 1600 | J19: 1600 | K19: يفوق التوقعات
A20: =IFERROR(_xlfn.XLOOKUP(TRIM(G20),[1]StudentsNames!$B$2:$B$2012,[1]StudentsNames!$D$2:$D$2012,,0),"") -> 2378 | B20: 507 | C20: Al Abbas Bin Abdul Muttalib | D20: =IFERROR(_xlfn.XLOOKUP(TRIM(G20),[1]StudentsNames!$B$2:$B$2012,[1]StudentsNames!$E$2:$E$2012,,0),"") -> 12B | E20: 12 Gen | F20: =IFERROR(_xlfn.XLOOKUP(TRIM(G20),[1]StudentsNames!$B$2:$B$2012,[1]StudentsNames!$F$2:$F$2012,,0),"") -> 12 Gen | G20: Ali 13 | H20: English | I20: 875 | J20: 875 | K20: لا يلبي التوقعات | O20: Columns Students # and Section will be filled in automatically
A21: =IFERROR(_xlfn.XLOOKUP(TRIM(G21),[1]StudentsNames!$B$2:$B$2012,[1]StudentsNames!$D$2:$D$2012,,0),"") -> 2381 | B21: 507 | C21: Al Abbas Bin Abdul Muttalib | D21: =IFERROR(_xlfn.XLOOKUP(TRIM(G21),[1]StudentsNames!$B$2:$B$2012,[1]StudentsNames!$E$2:$E$2012,,0),"") -> 12B | E21: 12 Gen | F21: =IFERROR(_xlfn.XLOOKUP(TRIM(G21),[1]StudentsNames!$B$2:$B$2012,[1]StudentsNames!$F$2:$F$2012,,0),"") -> 12 Gen | G21: Ali 14 | H21: Math | I21: 550 | J21: 550 | K21: لا يلبي التوقعات
A22: =IFERROR(_xlfn.XLOOKUP(TRIM(G22),[1]StudentsNames!$B$2:$B$2012,[1]StudentsNames!$D$2:$D$2012,,0),"") -> 2387 | B22: 507 | C22: Al Abbas Bin Abdul Muttalib | D22: =IFERROR(_xlfn.XLOOKUP(TRIM(G22),[1]StudentsNames!$B$2:$B$2012,[1]StudentsNames!$E$2:$E$2012,,0),"") -> 12B | E22: 12 Gen | F22: =IFERROR(_xlfn.XLOOKUP(TRIM(G22),[1]StudentsNames!$B$2:$B$2012,[1]StudentsNames!$F$2:$F$2012,,0),"") -> 12 Gen | G22: Ali 16 | H22: English | I22: 1825 | J22: 1825 | K22: يفوق التوقعات
A23: =IFERROR(_xlfn.XLOOKUP(TRIM(G23),[1]StudentsNames!$B$2:$B$2012,[1]StudentsNames!$D$2:$D$2012,,0),"") -> 2390 | B23: 507 | C23: Al Abbas Bin Abdul Muttalib | D23: =IFERROR(_xlfn.XLOOKUP(TRIM(G23),[1]StudentsNames!$B$2:$B$2012,[1]StudentsNames!$E$2:$E$2012,,0),"") -> 12B | E23: 12 Gen | F23: =IFERROR(_xlfn.XLOOKUP(TRIM(G23),[1]StudentsNames!$B$2:$B$2012,[1]StudentsNames!$F$2:$F$2012,,0),"") -> 12 Gen | G23: Ali 17 | H23: Arabic | I23: 600 | J23: 600 | K23: لا يلبي التوقعات
A24: =IFERROR(_xlfn.XLOOKUP(TRIM(G24),[1]StudentsNames!$B$2:$B$2012,[1]StudentsNames!$D$2:$D$2012,,0),"") -> 2399 | B24: 507 | C24: Al Abbas Bin Abdul Muttalib | D24: =IFERROR(_xlfn.XLOOKUP(TRIM(G24),[1]StudentsNames!$B$2:$B$2012,[1]StudentsNames!$E$2:$E$2012,,0),"") -> 12B | E24: 12 Gen | F24: =IFERROR(_xlfn.XLOOKUP(TRIM(G24),[1]StudentsNames!$B$2:$B$2012,[1]StudentsNames!$F$2:$F$2012,,0),"") -> 12 Gen | G24: Ali 20 | H24: Physics | I24: 1025 | J24: 1025 | K24: لا يلبي التوقعات
A25: =IFERROR(_xlfn.XLOOKUP(TRIM(G25),[1]StudentsNames!$B$2:$B$2012,[1]StudentsNames!$D$2:$D$2012,,0),"") -> 2348 | B25: 507 | C25: Al Abbas Bin Abdul Muttalib | D25: =IFERROR(_xlfn.XLOOKUP(TRIM(G25),[1]StudentsNames!$B$2:$B$2012,[1]StudentsNames!$E$2:$E$2012,,0),"") -> 12A | E25: 12 Adv | F25: =IFERROR(_xlfn.XLOOKUP(TRIM(G25),[1]StudentsNames!$B$2:$B$2012,[1]StudentsNames!$F$2:$F$2012,,0),"") -> 12 Adv | G25: Ali 3 | H25: Arabic | I25: 850 | J25: 850 | K25: لا يلبي التوقعات
A26: =IFERROR(_xlfn.XLOOKUP(TRIM(G26),[1]StudentsNames!$B$2:$B$2012,[1]StudentsNames!$D$2:$D$2012,,0),"") -> 2348 | B26: 507 | C26: Al Abbas Bin Abdul Muttalib | D26: =IFERROR(_xlfn.XLOOKUP(TRIM(G26),[1]StudentsNames!$B$2:$B$2012,[1]StudentsNames!$E$2:$E$2012,,0),"") -> 12A | E26: 12 Adv | F26: =IFERROR(_xlfn.XLOOKUP(TRIM(G26),[1]StudentsNames!$B$2:$B$2012,[1]StudentsNames!$F$2:$F$2012,,0),"") -> 12 Adv | G26: Ali 3 | H26: English | I26: 1250 | J26: 1250 | K26: يلبي التوقعات
A27: =IFERROR(_xlfn.XLOOKUP(TRIM(G27),[1]StudentsNames!$B$2:$B$2012,[1]StudentsNames!$D$2:$D$2012,,0),"") -> 2348 | B27: 507 | C27: Al Abbas Bin Abdul Muttalib | D27: =IFERROR(_xlfn.XLOOKUP(TRIM(G27),[1]StudentsNames!$B$2:$B$2012,[1]StudentsNames!$E$2:$E$2012,,0),"") -> 12A | E27: 12 Adv | F27: =IFERROR(_xlfn.XLOOKUP(TRIM(G27),[1]StudentsNames!$B$2:$B$2012,[1]StudentsNames!$F$2:$F$2012,,0),"") -> 12 Adv | G27: Ali 3 | H27: English | I27: 1825 | J27: 1825 | K27: يفوق التوقعات
A28: =IFERROR(_xlfn.XLOOKUP(TRIM(G28),[1]StudentsNames!$B$2:$B$2012,[1]StudentsNames!$D$2:$D$2012,,0),"") -> 2354 | B28: 507 | C28: Al Abbas Bin Abdul Muttalib | D28: =IFERROR(_xlfn.XLOOKUP(TRIM(G28),[1]StudentsNames!$B$2:$B$2012,[1]StudentsNames!$E$2:$E$2012,,0),"") -> 12A | E28: 12 Adv | F28: =IFERROR(_xlfn.XLOOKUP(TRIM(G28),[1]StudentsNames!$B$2:$B$2012,[1]StudentsNames!$F$2:$F$2012,,0),"") -> 12 Adv | G28: Ali 5 | H28: Math | I28: 1075 | J28: 1075 | K28: لا يلبي التوقعات
A29: =IFERROR(_xlfn.XLOOKUP(TRIM(G29),[1]StudentsNames!$B$2:$B$2012,[1]StudentsNames!$D$2:$D$2012,,0),"") -> 2357 | B29: 507 | C29: Al Abbas Bin Abdul Muttalib | D29: =IFERROR(_xlfn.XLOOKUP(TRIM(G29),[1]StudentsNames!$B$2:$B$2012,[1]StudentsNames!$E$2:$E$2012,,0),"") -> 12A | E29: 12 Adv | F29: =IFERROR(_xlfn.XLOOKUP(TRIM(G29),[1]StudentsNames!$B$2:$B$2012,[1]StudentsNames!$F$2:$F$2012,,0),"") -> 12 Adv | G29: Ali 6 | H29: Physics | I29: 1050 | J29: 1050 | K29: لا يلبي التوقعات
A30: =IFERROR(_xlfn.XLOOKUP(TRIM(G30),[1]StudentsNames!$B$2:$B$2012,[1]StudentsNames!$D$2:$D$2012,,0),"") -> 2360 | B30: 507 | C30: Al Abbas Bin Abdul Muttalib | D30: =IFERROR(_xlfn.XLOOKUP(TRIM(G30),[1]StudentsNames!$B$2:$B$2012,[1]StudentsNames!$E$2:$E$2012,,0),"") -> 12A | E30: 12 Adv | F30: =IFERROR(_xlfn.XLOOKUP(TRIM(G30),[1]StudentsNames!$B$2:$B$2012,[1]StudentsNames!$F$2:$F$2012,,0),"") -> 12 Adv | G30: Ali 7 | H30: English | I30: 1400 | J30: 1400 | K30: يفوق التوقعات
A31: =IFERROR(_xlfn.XLOOKUP(TRIM(G31),[1]StudentsNames!$B$2:$B$2012,[1]StudentsNames!$D$2:$D$2012,,0),"") -> 2363 | B31: 507 | C31: Al Abbas Bin Abdul Muttalib | D31: =IFERROR(_xlfn.XLOOKUP(TRIM(G31),[1]StudentsNames!$B$2:$B$2012,[1]StudentsNames!$E$2:$E$2012,,0),"") -> 12A | E31: 12 Adv | F31: =IFERROR(_xlfn.XLOOKUP(TRIM(G31),[1]StudentsNames!$B$2:$B$2012,[1]StudentsNames!$F$2:$F$2012,,0),"") -> 12 Adv | G31: Ali 8 | H31: Arabic | I31: 1000 | J31: 1000 | K31: لا يلبي التوقعات
A32: =IFERROR(_xlfn.XLOOKUP(TRIM(G32),[1]StudentsNames!$B$2:$B$2012,[1]StudentsNames!$D$2:$D$2012,,0),"") -> 2366 | B32: 507 | C32: Al Abbas Bin Abdul Muttalib | D32: =IFERROR(_xlfn.XLOOKUP(TRIM(G32),[1]StudentsNames!$B$2:$B$2012,[1]StudentsNames!$E$2:$E$2012,,0),"") -> 12A | E32: 12 Adv | F32: =IFERROR(_xlfn.XLOOKUP(TRIM(G32),[1]StudentsNames!$B$2:$B$2012,[1]StudentsNames!$F$2:$F$2012,,0),"") -> 12 Adv | G32: Ali 9 | H32: Arabic | I32: 650 | J32: 650 | K32: لا يلبي التوقعات
A33: =IFERROR(_xlfn.XLOOKUP(TRIM(G33),[1]StudentsNames!$B$2:$B$2012,[1]StudentsNames!$D$2:$D$2012,,0),"") ->  | D33: =IFERROR(_xlfn.XLOOKUP(TRIM(G33),[1]StudentsNames!$B$2:$B$2012,[1]StudentsNames!$E$2:$E$2012,,0),"") ->  | F33: =IFERROR(_xlfn.XLOOKUP(TRIM(G33),[1]StudentsNames!$B$2:$B$2012,[1]StudentsNames!$F$2:$F$2012,,0),"") ->  | K33: 0
A34: =IFERROR(_xlfn.XLOOKUP(TRIM(G34),[1]StudentsNames!$B$2:$B$2012,[1]StudentsNames!$D$2:$D$2012,,0),"") ->  | D34: =IFERROR(_xlfn.XLOOKUP(TRIM(G34),[1]StudentsNames!$B$2:$B$2012,[1]StudentsNames!$E$2:$E$2012,,0),"") ->  | F34: =IFERROR(_xlfn.XLOOKUP(TRIM(G34),[1]StudentsNames!$B$2:$B$2012,[1]StudentsNames!$F$2:$F$2012,,0),"") ->  | K34: 0
A35: =IFERROR(_xlfn.XLOOKUP(TRIM(G35),[1]StudentsNames!$B$2:$B$2012,[1]StudentsNames!$D$2:$D$2012,,0),"") ->  | D35: =IFERROR(_xlfn.XLOOKUP(TRIM(G35),[1]StudentsNames!$B$2:$B$2012,[1]StudentsNames!$E$2:$E$2012,,0),"") ->  | F35: =IFERROR(_xlfn.XLOOKUP(TRIM(G35),[1]StudentsNames!$B$2:$B$2012,[1]StudentsNames!$F$2:$F$2012,,0),"") ->  | K35: 0
A36: =IFERROR(_xlfn.XLOOKUP(TRIM(G36),[1]StudentsNames!$B$2:$B$2012,[1]StudentsNames!$D$2:$D$2012,,0),"") ->  | D36: =IFERROR(_xlfn.XLOOKUP(TRIM(G36),[1]StudentsNames!$B$2:$B$2012,[1]StudentsNames!$E$2:$E$2012,,0),"") ->  | F36: =IFERROR(_xlfn.XLOOKUP(TRIM(G36),[1]StudentsNames!$B$2:$B$2012,[1]StudentsNames!$F$2:$F$2012,,0),"") ->  | K36: 0
A37: =IFERROR(_xlfn.XLOOKUP(TRIM(G37),[1]StudentsNames!$B$2:$B$2012,[1]StudentsNames!$D$2:$D$2012,,0),"") ->  | D37: =IFERROR(_xlfn.XLOOKUP(TRIM(G37),[1]StudentsNames!$B$2:$B$2012,[1]StudentsNames!$E$2:$E$2012,,0),"") ->  | F37: =IFERROR(_xlfn.XLOOKUP(TRIM(G37),[1]StudentsNames!$B$2:$B$2012,[1]StudentsNames!$F$2:$F$2012,,0),"") ->  | K37: 0
A38: =IFERROR(_xlfn.XLOOKUP(TRIM(G38),[1]StudentsNames!$B$2:$B$2012,[1]StudentsNames!$D$2:$D$2012,,0),"") ->  | D38: =IFERROR(_xlfn.XLOOKUP(TRIM(G38),[1]StudentsNames!$B$2:$B$2012,[1]StudentsNames!$E$2:$E$2012,,0),"") ->  | F38: =IFERROR(_xlfn.XLOOKUP(TRIM(G38),[1]StudentsNames!$B$2:$B$2012,[1]StudentsNames!$F$2:$F$2012,,0),"") ->  | K38: 0
A39: =IFERROR(_xlfn.XLOOKUP(TRIM(G39),[1]StudentsNames!$B$2:$B$2012,[1]StudentsNames!$D$2:$D$2012,,0),"") ->  | D39: =IFERROR(_xlfn.XLOOKUP(TRIM(G39),[1]StudentsNames!$B$2:$B$2012,[1]StudentsNames!$E$2:$E$2012,,0),"") ->  | F39: =IFERROR(_xlfn.XLOOKUP(TRIM(G39),[1]StudentsNames!$B$2:$B$2012,[1]StudentsNames!$F$2:$F$2012,,0),"") ->  | K39: 0
A40: =IFERROR(_xlfn.XLOOKUP(TRIM(G40),[1]StudentsNames!$B$2:$B$2012,[1]StudentsNames!$D$2:$D$2012,,0),"") ->  | D40: =IFERROR(_xlfn.XLOOKUP(TRIM(G40),[1]StudentsNames!$B$2:$B$2012,[1]StudentsNames!$E$2:$E$2012,,0),"") ->  | F40: =IFERROR(_xlfn.XLOOKUP(TRIM(G40),[1]StudentsNames!$B$2:$B$2012,[1]StudentsNames!$F$2:$F$2012,,0),"") ->  | K40: 0
A41: =IFERROR(_xlfn.XLOOKUP(TRIM(G41),[1]StudentsNames!$B$2:$B$2012,[1]StudentsNames!$D$2:$D$2012,,0),"") ->  | D41: =IFERROR(_xlfn.XLOOKUP(TRIM(G41),[1]StudentsNames!$B$2:$B$2012,[1]StudentsNames!$E$2:$E$2012,,0),"") ->  | F41: =IFERROR(_xlfn.XLOOKUP(TRIM(G41),[1]StudentsNames!$B$2:$B$2012,[1]StudentsNames!$F$2:$F$2012,,0),"") ->  | K41: 0
A42: =IFERROR(_xlfn.XLOOKUP(TRIM(G42),[1]StudentsNames!$B$2:$B$2012,[1]StudentsNames!$D$2:$D$2012,,0),"") ->  | D42: =IFERROR(_xlfn.XLOOKUP(TRIM(G42),[1]StudentsNames!$B$2:$B$2012,[1]StudentsNames!$E$2:$E$2012,,0),"") ->  | F42: =IFERROR(_xlfn.XLOOKUP(TRIM(G42),[1]StudentsNames!$B$2:$B$2012,[1]StudentsNames!$F$2:$F$2012,,0),"") ->  | K42: 0
A43: =IFERROR(_xlfn.XLOOKUP(TRIM(G43),[1]StudentsNames!$B$2:$B$2012,[1]StudentsNames!$D$2:$D$2012,,0),"") ->  | D43: =IFERROR(_xlfn.XLOOKUP(TRIM(G43),[1]StudentsNames!$B$2:$B$2012,[1]StudentsNames!$E$2:$E$2012,,0),"") ->  | F43: =IFERROR(_xlfn.XLOOKUP(TRIM(G43),[1]StudentsNames!$B$2:$B$2012,[1]StudentsNames!$F$2:$F$2012,,0),"") ->  | K43: 0
A44: =IFERROR(_xlfn.XLOOKUP(TRIM(G44),[1]StudentsNames!$B$2:$B$2012,[1]StudentsNames!$D$2:$D$2012,,0),"") ->  | D44: =IFERROR(_xlfn.XLOOKUP(TRIM(G44),[1]StudentsNames!$B$2:$B$2012,[1]StudentsNames!$E$2:$E$2012,,0),"") ->  | F44: =IFERROR(_xlfn.XLOOKUP(TRIM(G44),[1]StudentsNames!$B$2:$B$2012,[1]StudentsNames!$F$2:$F$2012,,0),"") ->  | K44: 0
A45: =IFERROR(_xlfn.XLOOKUP(TRIM(G45),[1]StudentsNames!$B$2:$B$2012,[1]StudentsNames!$D$2:$D$2012,,0),"") ->  | D45: =IFERROR(_xlfn.XLOOKUP(TRIM(G45),[1]StudentsNames!$B$2:$B$2012,[1]StudentsNames!$E$2:$E$2012,,0),"") ->  | F45: =IFERROR(_xlfn.XLOOKUP(TRIM(G45),[1]StudentsNames!$B$2:$B$2012,[1]StudentsNames!$F$2:$F$2012,,0),"") ->  | K45: 0
A46: =IFERROR(_xlfn.XLOOKUP(TRIM(G46),[1]StudentsNames!$B$2:$B$2012,[1]StudentsNames!$D$2:$D$2012,,0),"") ->  | D46: =IFERROR(_xlfn.XLOOKUP(TRIM(G46),[1]StudentsNames!$B$2:$B$2012,[1]StudentsNames!$E$2:$E$2012,,0),"") ->  | F46: =IFERROR(_xlfn.XLOOKUP(TRIM(G46),[1]StudentsNames!$B$2:$B$2012,[1]StudentsNames!$F$2:$F$2012,,0),"") ->  | K46: 0
A47: =IFERROR(_xlfn.XLOOKUP(TRIM(G47),[1]StudentsNames!$B$2:$B$2012,[1]StudentsNames!$D$2:$D$2012,,0),"") ->  | D47: =IFERROR(_xlfn.XLOOKUP(TRIM(G47),[1]StudentsNames!$B$2:$B$2012,[1]StudentsNames!$E$2:$E$2012,,0),"") ->  | F47: =IFERROR(_xlfn.XLOOKUP(TRIM(G47),[1]StudentsNames!$B$2:$B$2012,[1]StudentsNames!$F$2:$F$2012,,0),"") ->  | K47: 0
A48: =IFERROR(_xlfn.XLOOKUP(TRIM(G48),[1]StudentsNames!$B$2:$B$2012,[1]StudentsNames!$D$2:$D$2012,,0),"") ->  | D48: =IFERROR(_xlfn.XLOOKUP(TRIM(G48),[1]StudentsNames!$B$2:$B$2012,[1]StudentsNames!$E$2:$E$2012,,0),"") ->  | F48: =IFERROR(_xlfn.XLOOKUP(TRIM(G48),[1]StudentsNames!$B$2:$B$2012,[1]StudentsNames!$F$2:$F$2012,,0),"") ->  | K48: 0
A49: =IFERROR(_xlfn.XLOOKUP(TRIM(G49),[1]StudentsNames!$B$2:$B$2012,[1]StudentsNames!$D$2:$D$2012,,0),"") ->  | D49: =IFERROR(_xlfn.XLOOKUP(TRIM(G49),[1]StudentsNames!$B$2:$B$2012,[1]StudentsNames!$E$2:$E$2012,,0),"") ->  | F49: =IFERROR(_xlfn.XLOOKUP(TRIM(G49),[1]StudentsNames!$B$2:$B$2012,[1]StudentsNames!$F$2:$F$2012,,0),"") ->  | K49: 0
A50: =IFERROR(_xlfn.XLOOKUP(TRIM(G50),[1]StudentsNames!$B$2:$B$2012,[1]StudentsNames!$D$2:$D$2012,,0),"") ->  | D50: =IFERROR(_xlfn.XLOOKUP(TRIM(G50),[1]StudentsNames!$B$2:$B$2012,[1]StudentsNames!$E$2:$E$2012,,0),"") ->  | F50: =IFERROR(_xlfn.XLOOKUP(TRIM(G50),[1]StudentsNames!$B$2:$B$2012,[1]StudentsNames!$F$2:$F$2012,,0),"") ->  | K50: 0
A51: =IFERROR(_xlfn.XLOOKUP(TRIM(G51),[1]StudentsNames!$B$2:$B$2012,[1]StudentsNames!$D$2:$D$2012,,0),"") ->  | D51: =IFERROR(_xlfn.XLOOKUP(TRIM(G51),[1]StudentsNames!$B$2:$B$2012,[1]StudentsNames!$E$2:$E$2012,,0),"") ->  | F51: =IFERROR(_xlfn.XLOOKUP(TRIM(G51),[1]StudentsNames!$B$2:$B$2012,[1]StudentsNames!$F$2:$F$2012,,0),"") ->  | K51: 0
A52: =IFERROR(_xlfn.XLOOKUP(TRIM(G52),[1]StudentsNames!$B$2:$B$2012,[1]StudentsNames!$D$2:$D$2012,,0),"") ->  | D52: =IFERROR(_xlfn.XLOOKUP(TRIM(G52),[1]StudentsNames!$B$2:$B$2012,[1]StudentsNames!$E$2:$E$2012,,0),"") ->  | F52: =IFERROR(_xlfn.XLOOKUP(TRIM(G52),[1]StudentsNames!$B$2:$B$2012,[1]StudentsNames!$F$2:$F$2012,,0),"") ->  | K52: 0
A53: =IFERROR(_xlfn.XLOOKUP(TRIM(G53),[1]StudentsNames!$B$2:$B$2012,[1]StudentsNames!$D$2:$D$2012,,0),"") ->  | D53: =IFERROR(_xlfn.XLOOKUP(TRIM(G53),[1]StudentsNames!$B$2:$B$2012,[1]StudentsNames!$E$2:$E$2012,,0),"") ->  | F53: =IFERROR(_xlfn.XLOOKUP(TRIM(G53),[1]StudentsNames!$B$2:$B$2012,[1]StudentsNames!$F$2:$F$2012,,0),"") ->  | K53: 0
A54: =IFERROR(_xlfn.XLOOKUP(TRIM(G54),[1]StudentsNames!$B$2:$B$2012,[1]StudentsNames!$D$2:$D$2012,,0),"") ->  | D54: =IFERROR(_xlfn.XLOOKUP(TRIM(G54),[1]StudentsNames!$B$2:$B$2012,[1]StudentsNames!$E$2:$E$2012,,0),"") ->  | F54: =IFERROR(_xlfn.XLOOKUP(TRIM(G54),[1]StudentsNames!$B$2:$B$2012,[1]StudentsNames!$F$2:$F$2012,,0),"") ->  | K54: 0
A55: =IFERROR(_xlfn.XLOOKUP(TRIM(G55),[1]StudentsNames!$B$2:$B$2012,[1]StudentsNames!$D$2:$D$2012,,0),"") ->  | D55: =IFERROR(_xlfn.XLOOKUP(TRIM(G55),[1]StudentsNames!$B$2:$B$2012,[1]StudentsNames!$E$2:$E$2012,,0),"") ->  | F55: =IFERROR(_xlfn.XLOOKUP(TRIM(G55),[1]StudentsNames!$B$2:$B$2012,[1]StudentsNames!$F$2:$F$2012,,0),"") ->  | K55: 0
A56: =IFERROR(_xlfn.XLOOKUP(TRIM(G56),[1]StudentsNames!$B$2:$B$2012,[1]StudentsNames!$D$2:$D$2012,,0),"") ->  | D56: =IFERROR(_xlfn.XLOOKUP(TRIM(G56),[1]StudentsNames!$B$2:$B$2012,[1]StudentsNames!$E$2:$E$2012,,0),"") ->  | F56: =IFERROR(_xlfn.XLOOKUP(TRIM(G56),[1]StudentsNames!$B$2:$B$2012,[1]StudentsNames!$F$2:$F$2012,,0),"") ->  | K56: 0
A57: =IFERROR(_xlfn.XLOOKUP(TRIM(G57),[1]StudentsNames!$B$2:$B$2012,[1]StudentsNames!$D$2:$D$2012,,0),"") ->  | D57: =IFERROR(_xlfn.XLOOKUP(TRIM(G57),[1]StudentsNames!$B$2:$B$2012,[1]StudentsNames!$E$2:$E$2012,,0),"") ->  | F57: =IFERROR(_xlfn.XLOOKUP(TRIM(G57),[1]StudentsNames!$B$2:$B$2012,[1]StudentsNames!$F$2:$F$2012,,0),"") ->  | K57: 0
A58: =IFERROR(_xlfn.XLOOKUP(TRIM(G58),[1]StudentsNames!$B$2:$B$2012,[1]StudentsNames!$D$2:$D$2012,,0),"") ->  | D58: =IFERROR(_xlfn.XLOOKUP(TRIM(G58),[1]StudentsNames!$B$2:$B$2012,[1]StudentsNames!$E$2:$E$2012,,0),"") ->  | F58: =IFERROR(_xlfn.XLOOKUP(TRIM(G58),[1]StudentsNames!$B$2:$B$2012,[1]StudentsNames!$F$2:$F$2012,,0),"") ->  | K58: 0
A59: =IFERROR(_xlfn.XLOOKUP(TRIM(G59),[1]StudentsNames!$B$2:$B$2012,[1]StudentsNames!$D$2:$D$2012,,0),"") ->  | D59: =IFERROR(_xlfn.XLOOKUP(TRIM(G59),[1]StudentsNames!$B$2:$B$2012,[1]StudentsNames!$E$2:$E$2012,,0),"") ->  | F59: =IFERROR(_xlfn.XLOOKUP(TRIM(G59),[1]StudentsNames!$B$2:$B$2012,[1]StudentsNames!$F$2:$F$2012,,0),"") ->  | K59: 0
A60: =IFERROR(_xlfn.XLOOKUP(TRIM(G60),[1]StudentsNames!$B$2:$B$2012,[1]StudentsNames!$D$2:$D$2012,,0),"") ->  | D60: =IFERROR(_xlfn.XLOOKUP(TRIM(G60),[1]StudentsNames!$B$2:$B$2012,[1]StudentsNames!$E$2:$E$2012,,0),"") ->  | F60: =IFERROR(_xlfn.XLOOKUP(TRIM(G60),[1]StudentsNames!$B$2:$B$2012,[1]StudentsNames!$F$2:$F$2012,,0),"") ->  | K60: 0
A61: =IFERROR(_xlfn.XLOOKUP(TRIM(G61),[1]StudentsNames!$B$2:$B$2012,[1]StudentsNames!$D$2:$D$2012,,0),"") ->  | D61: =IFERROR(_xlfn.XLOOKUP(TRIM(G61),[1]StudentsNames!$B$2:$B$2012,[1]StudentsNames!$E$2:$E$2012,,0),"") ->  | F61: =IFERROR(_xlfn.XLOOKUP(TRIM(G61),[1]StudentsNames!$B$2:$B$2012,[1]StudentsNames!$F$2:$F$2012,,0),"") ->  | K61: 0
A62: =IFERROR(_xlfn.XLOOKUP(TRIM(G62),[1]StudentsNames!$B$2:$B$2012,[1]StudentsNames!$D$2:$D$2012,,0),"") ->  | D62: =IFERROR(_xlfn.XLOOKUP(TRIM(G62),[1]StudentsNames!$B$2:$B$2012,[1]StudentsNames!$E$2:$E$2012,,0),"") ->  | F62: =IFERROR(_xlfn.XLOOKUP(TRIM(G62),[1]StudentsNames!$B$2:$B$2012,[1]StudentsNames!$F$2:$F$2012,,0),"") ->  | K62: 0
A63: =IFERROR(_xlfn.XLOOKUP(TRIM(G63),[1]StudentsNames!$B$2:$B$2012,[1]StudentsNames!$D$2:$D$2012,,0),"") ->  | D63: =IFERROR(_xlfn.XLOOKUP(TRIM(G63),[1]StudentsNames!$B$2:$B$2012,[1]StudentsNames!$E$2:$E$2012,,0),"") ->  | F63: =IFERROR(_xlfn.XLOOKUP(TRIM(G63),[1]StudentsNames!$B$2:$B$2012,[1]StudentsNames!$F$2:$F$2012,,0),"") ->  | K63: 0
A64: =IFERROR(_xlfn.XLOOKUP(TRIM(G64),[1]StudentsNames!$B$2:$B$2012,[1]StudentsNames!$D$2:$D$2012,,0),"") ->  | D64: =IFERROR(_xlfn.XLOOKUP(TRIM(G64),[1]StudentsNames!$B$2:$B$2012,[1]StudentsNames!$E$2:$E$2012,,0),"") ->  | F64: =IFERROR(_xlfn.XLOOKUP(TRIM(G64),[1]StudentsNames!$B$2:$B$2012,[1]StudentsNames!$F$2:$F$2012,,0),"") ->  | K64: 0
A65: =IFERROR(_xlfn.XLOOKUP(TRIM(G65),[1]StudentsNames!$B$2:$B$2012,[1]StudentsNames!$D$2:$D$2012,,0),"") ->  | D65: =IFERROR(_xlfn.XLOOKUP(TRIM(G65),[1]StudentsNames!$B$2:$B$2012,[1]StudentsNames!$E$2:$E$2012,,0),"") ->  | F65: =IFERROR(_xlfn.XLOOKUP(TRIM(G65),[1]StudentsNames!$B$2:$B$2012,[1]StudentsNames!$F$2:$F$2012,,0),"") ->  | K65: 0
A66: =IFERROR(_xlfn.XLOOKUP(TRIM(G66),[1]StudentsNames!$B$2:$B$2012,[1]StudentsNames!$D$2:$D$2012,,0),"") ->  | D66: =IFERROR(_xlfn.XLOOKUP(TRIM(G66),[1]StudentsNames!$B$2:$B$2012,[1]StudentsNames!$E$2:$E$2012,,0),"") ->  | F66: =IFERROR(_xlfn.XLOOKUP(TRIM(G66),[1]StudentsNames!$B$2:$B$2012,[1]StudentsNames!$F$2:$F$2012,,0),"") ->  | K66: 0
A67: =IFERROR(_xlfn.XLOOKUP(TRIM(G67),[1]StudentsNames!$B$2:$B$2012,[1]StudentsNames!$D$2:$D$2012,,0),"") ->  | D67: =IFERROR(_xlfn.XLOOKUP(TRIM(G67),[1]StudentsNames!$B$2:$B$2012,[1]StudentsNames!$E$2:$E$2012,,0),"") ->  | F67: =IFERROR(_xlfn.XLOOKUP(TRIM(G67),[1]StudentsNames!$B$2:$B$2012,[1]StudentsNames!$F$2:$F$2012,,0),"") ->  | K67: 0
A68: =IFERROR(_xlfn.XLOOKUP(TRIM(G68),[1]StudentsNames!$B$2:$B$2012,[1]StudentsNames!$D$2:$D$2012,,0),"") ->  | D68: =IFERROR(_xlfn.XLOOKUP(TRIM(G68),[1]StudentsNames!$B$2:$B$2012,[1]StudentsNames!$E$2:$E$2012,,0),"") ->  | F68: =IFERROR(_xlfn.XLOOKUP(TRIM(G68),[1]StudentsNames!$B$2:$B$2012,[1]StudentsNames!$F$2:$F$2012,,0),"") ->  | K68: 0
A69: =IFERROR(_xlfn.XLOOKUP(TRIM(G69),[1]StudentsNames!$B$2:$B$2012,[1]StudentsNames!$D$2:$D$2012,,0),"") ->  | D69: =IFERROR(_xlfn.XLOOKUP(TRIM(G69),[1]StudentsNames!$B$2:$B$2012,[1]StudentsNames!$E$2:$E$2012,,0),"") ->  | F69: =IFERROR(_xlfn.XLOOKUP(TRIM(G69),[1]StudentsNames!$B$2:$B$2012,[1]StudentsNames!$F$2:$F$2012,,0),"") ->  | K69: 0
A70: =IFERROR(_xlfn.XLOOKUP(TRIM(G70),[1]StudentsNames!$B$2:$B$2012,[1]StudentsNames!$D$2:$D$2012,,0),"") ->  | D70: =IFERROR(_xlfn.XLOOKUP(TRIM(G70),[1]StudentsNames!$B$2:$B$2012,[1]StudentsNames!$E$2:$E$2012,,0),"") ->  | F70: =IFERROR(_xlfn.XLOOKUP(TRIM(G70),[1]StudentsNames!$B$2:$B$2012,[1]StudentsNames!$F$2:$F$2012,,0),"") ->  | K70: 0
A71: =IFERROR(_xlfn.XLOOKUP(TRIM(G71),[1]StudentsNames!$B$2:$B$2012,[1]StudentsNames!$D$2:$D$2012,,0),"") ->  | D71: =IFERROR(_xlfn.XLOOKUP(TRIM(G71),[1]StudentsNames!$B$2:$B$2012,[1]StudentsNames!$E$2:$E$2012,,0),"") ->  | F71: =IFERROR(_xlfn.XLOOKUP(TRIM(G71),[1]StudentsNames!$B$2:$B$2012,[1]StudentsNames!$F$2:$F$2012,,0),"") ->  | K71: 0
A72: =IFERROR(_xlfn.XLOOKUP(TRIM(G72),[1]StudentsNames!$B$2:$B$2012,[1]StudentsNames!$D$2:$D$2012,,0),"") ->  | D72: =IFERROR(_xlfn.XLOOKUP(TRIM(G72),[1]StudentsNames!$B$2:$B$2012,[1]StudentsNames!$E$2:$E$2012,,0),"") ->  | F72: =IFERROR(_xlfn.XLOOKUP(TRIM(G72),[1]StudentsNames!$B$2:$B$2012,[1]StudentsNames!$F$2:$F$2012,,0),"") ->  | K72: 0
A73: =IFERROR(_xlfn.XLOOKUP(TRIM(G73),[1]StudentsNames!$B$2:$B$2012,[1]StudentsNames!$D$2:$D$2012,,0),"") ->  | D73: =IFERROR(_xlfn.XLOOKUP(TRIM(G73),[1]StudentsNames!$B$2:$B$2012,[1]StudentsNames!$E$2:$E$2012,,0),"") ->  | F73: =IFERROR(_xlfn.XLOOKUP(TRIM(G73),[1]StudentsNames!$B$2:$B$2012,[1]StudentsNames!$F$2:$F$2012,,0),"") ->  | K73: 0
A74: =IFERROR(_xlfn.XLOOKUP(TRIM(G74),[1]StudentsNames!$B$2:$B$2012,[1]StudentsNames!$D$2:$D$2012,,0),"") ->  | D74: =IFERROR(_xlfn.XLOOKUP(TRIM(G74),[1]StudentsNames!$B$2:$B$2012,[1]StudentsNames!$E$2:$E$2012,,0),"") ->  | F74: =IFERROR(_xlfn.XLOOKUP(TRIM(G74),[1]StudentsNames!$B$2:$B$2012,[1]StudentsNames!$F$2:$F$2012,,0),"") ->  | K74: 0
A75: =IFERROR(_xlfn.XLOOKUP(TRIM(G75),[1]StudentsNames!$B$2:$B$2012,[1]StudentsNames!$D$2:$D$2012,,0),"") ->  | D75: =IFERROR(_xlfn.XLOOKUP(TRIM(G75),[1]StudentsNames!$B$2:$B$2012,[1]StudentsNames!$E$2:$E$2012,,0),"") ->  | F75: =IFERROR(_xlfn.XLOOKUP(TRIM(G75),[1]StudentsNames!$B$2:$B$2012,[1]StudentsNames!$F$2:$F$2012,,0),"") ->  | K75: 0
A76: =IFERROR(_xlfn.XLOOKUP(TRIM(G76),[1]StudentsNames!$B$2:$B$2012,[1]StudentsNames!$D$2:$D$2012,,0),"") ->  | D76: =IFERROR(_xlfn.XLOOKUP(TRIM(G76),[1]StudentsNames!$B$2:$B$2012,[1]StudentsNames!$E$2:$E$2012,,0),"") ->  | F76: =IFERROR(_xlfn.XLOOKUP(TRIM(G76),[1]StudentsNames!$B$2:$B$2012,[1]StudentsNames!$F$2:$F$2012,,0),"") ->  | K76: =IFERROR(_xlfn.XLOOKUP(I76,$P$12:$P$14,$Q$12:$Q$14,,1),I76) -> 0
A77: =IFERROR(_xlfn.XLOOKUP(TRIM(G77),[1]StudentsNames!$B$2:$B$2012,[1]StudentsNames!$D$2:$D$2012,,0),"") ->  | D77: =IFERROR(_xlfn.XLOOKUP(TRIM(G77),[1]StudentsNames!$B$2:$B$2012,[1]StudentsNames!$E$2:$E$2012,,0),"") ->  | F77: =IFERROR(_xlfn.XLOOKUP(TRIM(G77),[1]StudentsNames!$B$2:$B$2012,[1]StudentsNames!$F$2:$F$2012,,0),"") ->  | J77: =SUBSTITUTE(SUBSTITUTE(I77,CHAR(13),""),CHAR(10),"") ->  | K77: 0
A78: =IFERROR(_xlfn.XLOOKUP(TRIM(G78),[1]StudentsNames!$B$2:$B$2012,[1]StudentsNames!$D$2:$D$2012,,0),"") ->  | D78: =IFERROR(_xlfn.XLOOKUP(TRIM(G78),[1]StudentsNames!$B$2:$B$2012,[1]StudentsNames!$E$2:$E$2012,,0),"") ->  | F78: =IFERROR(_xlfn.XLOOKUP(TRIM(G78),[1]StudentsNames!$B$2:$B$2012,[1]StudentsNames!$F$2:$F$2012,,0),"") ->  | K78: 0
A79: =IFERROR(_xlfn.XLOOKUP(TRIM(G79),[1]StudentsNames!$B$2:$B$2012,[1]StudentsNames!$D$2:$D$2012,,0),"") ->  | D79: =IFERROR(_xlfn.XLOOKUP(TRIM(G79),[1]StudentsNames!$B$2:$B$2012,[1]StudentsNames!$E$2:$E$2012,,0),"") ->  | F79: =IFERROR(_xlfn.XLOOKUP(TRIM(G79),[1]StudentsNames!$B$2:$B$2012,[1]StudentsNames!$F$2:$F$2012,,0),"") ->  | K79: 0
A80: =IFERROR(_xlfn.XLOOKUP(TRIM(G80),[1]StudentsNames!$B$2:$B$2012,[1]StudentsNames!$D$2:$D$2012,,0),"") ->  | D80: =IFERROR(_xlfn.XLOOKUP(TRIM(G80),[1]StudentsNames!$B$2:$B$2012,[1]StudentsNames!$E$2:$E$2012,,0),"") ->  | F80: =IFERROR(_xlfn.XLOOKUP(TRIM(G80),[1]StudentsNames!$B$2:$B$2012,[1]StudentsNames!$F$2:$F$2012,,0),"") ->  | K80: 0
A81: =IFERROR(_xlfn.XLOOKUP(TRIM(G81),[1]StudentsNames!$B$2:$B$2012,[1]StudentsNames!$D$2:$D$2012,,0),"") ->  | D81: =IFERROR(_xlfn.XLOOKUP(TRIM(G81),[1]StudentsNames!$B$2:$B$2012,[1]StudentsNames!$E$2:$E$2012,,0),"") ->  | F81: =IFERROR(_xlfn.XLOOKUP(TRIM(G81),[1]StudentsNames!$B$2:$B$2012,[1]StudentsNames!$F$2:$F$2012,,0),"") ->  | K81: 0
A82: =IFERROR(_xlfn.XLOOKUP(TRIM(G82),[1]StudentsNames!$B$2:$B$2012,[1]StudentsNames!$D$2:$D$2012,,0),"") ->  | D82: =IFERROR(_xlfn.XLOOKUP(TRIM(G82),[1]StudentsNames!$B$2:$B$2012,[1]StudentsNames!$E$2:$E$2012,,0),"") ->  | F82: =IFERROR(_xlfn.XLOOKUP(TRIM(G82),[1]StudentsNames!$B$2:$B$2012,[1]StudentsNames!$F$2:$F$2012,,0),"") ->  | K82: 0
A83: =IFERROR(_xlfn.XLOOKUP(TRIM(G83),[1]StudentsNames!$B$2:$B$2012,[1]StudentsNames!$D$2:$D$2012,,0),"") ->  | D83: =IFERROR(_xlfn.XLOOKUP(TRIM(G83),[1]StudentsNames!$B$2:$B$2012,[1]StudentsNames!$E$2:$E$2012,,0),"") ->  | F83: =IFERROR(_xlfn.XLOOKUP(TRIM(G83),[1]StudentsNames!$B$2:$B$2012,[1]StudentsNames!$F$2:$F$2012,,0),"") ->  | K83: 0
A84: =IFERROR(_xlfn.XLOOKUP(TRIM(G84),[1]StudentsNames!$B$2:$B$2012,[1]StudentsNames!$D$2:$D$2012,,0),"") ->  | D84: =IFERROR(_xlfn.XLOOKUP(TRIM(G84),[1]StudentsNames!$B$2:$B$2012,[1]StudentsNames!$E$2:$E$2012,,0),"") ->  | F84: =IFERROR(_xlfn.XLOOKUP(TRIM(G84),[1]StudentsNames!$B$2:$B$2012,[1]StudentsNames!$F$2:$F$2012,,0),"") ->  | K84: 0
A85: =IFERROR(_xlfn.XLOOKUP(TRIM(G85),[1]StudentsNames!$B$2:$B$2012,[1]StudentsNames!$D$2:$D$2012,,0),"") ->  | D85: =IFERROR(_xlfn.XLOOKUP(TRIM(G85),[1]StudentsNames!$B$2:$B$2012,[1]StudentsNames!$E$2:$E$2012,,0),"") ->  | F85: =IFERROR(_xlfn.XLOOKUP(TRIM(G85),[1]StudentsNames!$B$2:$B$2012,[1]StudentsNames!$F$2:$F$2012,,0),"") ->  | K85: 0
A86: =IFERROR(_xlfn.XLOOKUP(TRIM(G86),[1]StudentsNames!$B$2:$B$2012,[1]StudentsNames!$D$2:$D$2012,,0),"") ->  | D86: =IFERROR(_xlfn.XLOOKUP(TRIM(G86),[1]StudentsNames!$B$2:$B$2012,[1]StudentsNames!$E$2:$E$2012,,0),"") ->  | F86: =IFERROR(_xlfn.XLOOKUP(TRIM(G86),[1]StudentsNames!$B$2:$B$2012,[1]StudentsNames!$F$2:$F$2012,,0),"") ->  | K86: 0
A87: =IFERROR(_xlfn.XLOOKUP(TRIM(G87),[1]StudentsNames!$B$2:$B$2012,[1]StudentsNames!$D$2:$D$2012,,0),"") ->  | D87: =IFERROR(_xlfn.XLOOKUP(TRIM(G87),[1]StudentsNames!$B$2:$B$2012,[1]StudentsNames!$E$2:$E$2012,,0),"") ->  | F87: =IFERROR(_xlfn.XLOOKUP(TRIM(G87),[1]StudentsNames!$B$2:$B$2012,[1]StudentsNames!$F$2:$F$2012,,0),"") ->  | K87: 0
A88: =IFERROR(_xlfn.XLOOKUP(TRIM(G88),[1]StudentsNames!$B$2:$B$2012,[1]StudentsNames!$D$2:$D$2012,,0),"") ->  | D88: =IFERROR(_xlfn.XLOOKUP(TRIM(G88),[1]StudentsNames!$B$2:$B$2012,[1]StudentsNames!$E$2:$E$2012,,0),"") ->  | F88: =IFERROR(_xlfn.XLOOKUP(TRIM(G88),[1]StudentsNames!$B$2:$B$2012,[1]StudentsNames!$F$2:$F$2012,,0),"") ->  | K88: 0
A89: =IFERROR(_xlfn.XLOOKUP(TRIM(G89),[1]StudentsNames!$B$2:$B$2012,[1]StudentsNames!$D$2:$D$2012,,0),"") ->  | D89: =IFERROR(_xlfn.XLOOKUP(TRIM(G89),[1]StudentsNames!$B$2:$B$2012,[1]StudentsNames!$E$2:$E$2012,,0),"") ->  | F89: =IFERROR(_xlfn.XLOOKUP(TRIM(G89),[1]StudentsNames!$B$2:$B$2012,[1]StudentsNames!$F$2:$F$2012,,0),"") ->  | K89: 0
A90: =IFERROR(_xlfn.XLOOKUP(TRIM(G90),[1]StudentsNames!$B$2:$B$2012,[1]StudentsNames!$D$2:$D$2012,,0),"") ->  | D90: =IFERROR(_xlfn.XLOOKUP(TRIM(G90),[1]StudentsNames!$B$2:$B$2012,[1]StudentsNames!$E$2:$E$2012,,0),"") ->  | F90: =IFERROR(_xlfn.XLOOKUP(TRIM(G90),[1]StudentsNames!$B$2:$B$2012,[1]StudentsNames!$F$2:$F$2012,,0),"") ->  | K90: 0
A91: =IFERROR(_xlfn.XLOOKUP(TRIM(G91),[1]StudentsNames!$B$2:$B$2012,[1]StudentsNames!$D$2:$D$2012,,0),"") ->  | D91: =IFERROR(_xlfn.XLOOKUP(TRIM(G91),[1]StudentsNames!$B$2:$B$2012,[1]StudentsNames!$E$2:$E$2012,,0),"") ->  | F91: =IFERROR(_xlfn.XLOOKUP(TRIM(G91),[1]StudentsNames!$B$2:$B$2012,[1]StudentsNames!$F$2:$F$2012,,0),"") ->  | K91: 0
A92: =IFERROR(_xlfn.XLOOKUP(TRIM(G92),[1]StudentsNames!$B$2:$B$2012,[1]StudentsNames!$D$2:$D$2012,,0),"") ->  | D92: =IFERROR(_xlfn.XLOOKUP(TRIM(G92),[1]StudentsNames!$B$2:$B$2012,[1]StudentsNames!$E$2:$E$2012,,0),"") ->  | F92: =IFERROR(_xlfn.XLOOKUP(TRIM(G92),[1]StudentsNames!$B$2:$B$2012,[1]StudentsNames!$F$2:$F$2012,,0),"") ->  | K92: 0
A93: =IFERROR(_xlfn.XLOOKUP(TRIM(G93),[1]StudentsNames!$B$2:$B$2012,[1]StudentsNames!$D$2:$D$2012,,0),"") ->  | D93: =IFERROR(_xlfn.XLOOKUP(TRIM(G93),[1]StudentsNames!$B$2:$B$2012,[1]StudentsNames!$E$2:$E$2012,,0),"") ->  | F93: =IFERROR(_xlfn.XLOOKUP(TRIM(G93),[1]StudentsNames!$B$2:$B$2012,[1]StudentsNames!$F$2:$F$2012,,0),"") ->  | K93: 0
A94: =IFERROR(_xlfn.XLOOKUP(TRIM(G94),[1]StudentsNames!$B$2:$B$2012,[1]StudentsNames!$D$2:$D$2012,,0),"") ->  | D94: =IFERROR(_xlfn.XLOOKUP(TRIM(G94),[1]StudentsNames!$B$2:$B$2012,[1]StudentsNames!$E$2:$E$2012,,0),"") ->  | F94: =IFERROR(_xlfn.XLOOKUP(TRIM(G94),[1]StudentsNames!$B$2:$B$2012,[1]StudentsNames!$F$2:$F$2012,,0),"") ->  | K94: 0
A95: =IFERROR(_xlfn.XLOOKUP(TRIM(G95),[1]StudentsNames!$B$2:$B$2012,[1]StudentsNames!$D$2:$D$2012,,0),"") ->  | D95: =IFERROR(_xlfn.XLOOKUP(TRIM(G95),[1]StudentsNames!$B$2:$B$2012,[1]StudentsNames!$E$2:$E$2012,,0),"") ->  | F95: =IFERROR(_xlfn.XLOOKUP(TRIM(G95),[1]StudentsNames!$B$2:$B$2012,[1]StudentsNames!$F$2:$F$2012,,0),"") ->  | K95: 0
A96: =IFERROR(_xlfn.XLOOKUP(TRIM(G96),[1]StudentsNames!$B$2:$B$2012,[1]StudentsNames!$D$2:$D$2012,,0),"") ->  | D96: =IFERROR(_xlfn.XLOOKUP(TRIM(G96),[1]StudentsNames!$B$2:$B$2012,[1]StudentsNames!$E$2:$E$2012,,0),"") ->  | F96: =IFERROR(_xlfn.XLOOKUP(TRIM(G96),[1]StudentsNames!$B$2:$B$2012,[1]StudentsNames!$F$2:$F$2012,,0),"") ->  | K96: 0
A97: =IFERROR(_xlfn.XLOOKUP(TRIM(G97),[1]StudentsNames!$B$2:$B$2012,[1]StudentsNames!$D$2:$D$2012,,0),"") ->  | D97: =IFERROR(_xlfn.XLOOKUP(TRIM(G97),[1]StudentsNames!$B$2:$B$2012,[1]StudentsNames!$E$2:$E$2012,,0),"") ->  | F97: =IFERROR(_xlfn.XLOOKUP(TRIM(G97),[1]StudentsNames!$B$2:$B$2012,[1]StudentsNames!$F$2:$F$2012,,0),"") ->  | K97: 0
A98: =IFERROR(_xlfn.XLOOKUP(TRIM(G98),[1]StudentsNames!$B$2:$B$2012,[1]StudentsNames!$D$2:$D$2012,,0),"") ->  | D98: =IFERROR(_xlfn.XLOOKUP(TRIM(G98),[1]StudentsNames!$B$2:$B$2012,[1]StudentsNames!$E$2:$E$2012,,0),"") ->  | F98: =IFERROR(_xlfn.XLOOKUP(TRIM(G98),[1]StudentsNames!$B$2:$B$2012,[1]StudentsNames!$F$2:$F$2012,,0),"") ->  | K98: 0
A99: =IFERROR(_xlfn.XLOOKUP(TRIM(G99),[1]StudentsNames!$B$2:$B$2012,[1]StudentsNames!$D$2:$D$2012,,0),"") ->  | D99: =IFERROR(_xlfn.XLOOKUP(TRIM(G99),[1]StudentsNames!$B$2:$B$2012,[1]StudentsNames!$E$2:$E$2012,,0),"") ->  | F99: =IFERROR(_xlfn.XLOOKUP(TRIM(G99),[1]StudentsNames!$B$2:$B$2012,[1]StudentsNames!$F$2:$F$2012,,0),"") ->  | K99: 0
A100: =IFERROR(_xlfn.XLOOKUP(TRIM(G100),[1]StudentsNames!$B$2:$B$2012,[1]StudentsNames!$D$2:$D$2012,,0),"") ->  | D100: =IFERROR(_xlfn.XLOOKUP(TRIM(G100),[1]StudentsNames!$B$2:$B$2012,[1]StudentsNames!$E$2:$E$2012,,0),"") ->  | F100: =IFERROR(_xlfn.XLOOKUP(TRIM(G100),[1]StudentsNames!$B$2:$B$2012,[1]StudentsNames!$F$2:$F$2012,,0),"") ->  | K100: 0
A101: =IFERROR(_xlfn.XLOOKUP(TRIM(G101),[1]StudentsNames!$B$2:$B$2012,[1]StudentsNames!$D$2:$D$2012,,0),"") ->  | D101: =IFERROR(_xlfn.XLOOKUP(TRIM(G101),[1]StudentsNames!$B$2:$B$2012,[1]StudentsNames!$E$2:$E$2012,,0),"") ->  | F101: =IFERROR(_xlfn.XLOOKUP(TRIM(G101),[1]StudentsNames!$B$2:$B$2012,[1]StudentsNames!$F$2:$F$2012,,0),"") ->  | K101: 0
A102: =IFERROR(_xlfn.XLOOKUP(TRIM(G102),[1]StudentsNames!$B$2:$B$2012,[1]StudentsNames!$D$2:$D$2012,,0),"") ->  | D102: =IFERROR(_xlfn.XLOOKUP(TRIM(G102),[1]StudentsNames!$B$2:$B$2012,[1]StudentsNames!$E$2:$E$2012,,0),"") ->  | F102: =IFERROR(_xlfn.XLOOKUP(TRIM(G102),[1]StudentsNames!$B$2:$B$2012,[1]StudentsNames!$F$2:$F$2012,,0),"") ->  | K102: 0
A103: =IFERROR(_xlfn.XLOOKUP(TRIM(G103),[1]StudentsNames!$B$2:$B$2012,[1]StudentsNames!$D$2:$D$2012,,0),"") ->  | D103: =IFERROR(_xlfn.XLOOKUP(TRIM(G103),[1]StudentsNames!$B$2:$B$2012,[1]StudentsNames!$E$2:$E$2012,,0),"") ->  | F103: =IFERROR(_xlfn.XLOOKUP(TRIM(G103),[1]StudentsNames!$B$2:$B$2012,[1]StudentsNames!$F$2:$F$2012,,0),"") ->  | K103: 0
A104: =IFERROR(_xlfn.XLOOKUP(TRIM(G104),[1]StudentsNames!$B$2:$B$2012,[1]StudentsNames!$D$2:$D$2012,,0),"") ->  | D104: =IFERROR(_xlfn.XLOOKUP(TRIM(G104),[1]StudentsNames!$B$2:$B$2012,[1]StudentsNames!$E$2:$E$2012,,0),"") ->  | F104: =IFERROR(_xlfn.XLOOKUP(TRIM(G104),[1]StudentsNames!$B$2:$B$2012,[1]StudentsNames!$F$2:$F$2012,,0),"") ->  | K104: 0
A105: =IFERROR(_xlfn.XLOOKUP(TRIM(G105),[1]StudentsNames!$B$2:$B$2012,[1]StudentsNames!$D$2:$D$2012,,0),"") ->  | D105: =IFERROR(_xlfn.XLOOKUP(TRIM(G105),[1]StudentsNames!$B$2:$B$2012,[1]StudentsNames!$E$2:$E$2012,,0),"") ->  | F105: =IFERROR(_xlfn.XLOOKUP(TRIM(G105),[1]StudentsNames!$B$2:$B$2012,[1]StudentsNames!$F$2:$F$2012,,0),"") ->  | K105: 0
A106: =IFERROR(_xlfn.XLOOKUP(TRIM(G106),[1]StudentsNames!$B$2:$B$2012,[1]StudentsNames!$D$2:$D$2012,,0),"") ->  | D106: =IFERROR(_xlfn.XLOOKUP(TRIM(G106),[1]StudentsNames!$B$2:$B$2012,[1]StudentsNames!$E$2:$E$2012,,0),"") ->  | F106: =IFERROR(_xlfn.XLOOKUP(TRIM(G106),[1]StudentsNames!$B$2:$B$2012,[1]StudentsNames!$F$2:$F$2012,,0),"") ->  | K106: 0
A107: =IFERROR(_xlfn.XLOOKUP(TRIM(G107),[1]StudentsNames!$B$2:$B$2012,[1]StudentsNames!$D$2:$D$2012,,0),"") ->  | D107: =IFERROR(_xlfn.XLOOKUP(TRIM(G107),[1]StudentsNames!$B$2:$B$2012,[1]StudentsNames!$E$2:$E$2012,,0),"") ->  | F107: =IFERROR(_xlfn.XLOOKUP(TRIM(G107),[1]StudentsNames!$B$2:$B$2012,[1]StudentsNames!$F$2:$F$2012,,0),"") ->  | K107: 0
A108: =IFERROR(_xlfn.XLOOKUP(TRIM(G108),[1]StudentsNames!$B$2:$B$2012,[1]StudentsNames!$D$2:$D$2012,,0),"") ->  | D108: =IFERROR(_xlfn.XLOOKUP(TRIM(G108),[1]StudentsNames!$B$2:$B$2012,[1]StudentsNames!$E$2:$E$2012,,0),"") ->  | F108: =IFERROR(_xlfn.XLOOKUP(TRIM(G108),[1]StudentsNames!$B$2:$B$2012,[1]StudentsNames!$F$2:$F$2012,,0),"") ->  | K108: 0
A109: =IFERROR(_xlfn.XLOOKUP(TRIM(G109),[1]StudentsNames!$B$2:$B$2012,[1]StudentsNames!$D$2:$D$2012,,0),"") ->  | D109: =IFERROR(_xlfn.XLOOKUP(TRIM(G109),[1]StudentsNames!$B$2:$B$2012,[1]StudentsNames!$E$2:$E$2012,,0),"") ->  | F109: =IFERROR(_xlfn.XLOOKUP(TRIM(G109),[1]StudentsNames!$B$2:$B$2012,[1]StudentsNames!$F$2:$F$2012,,0),"") ->  | K109: 0
A110: =IFERROR(_xlfn.XLOOKUP(TRIM(G110),[1]StudentsNames!$B$2:$B$2012,[1]StudentsNames!$D$2:$D$2012,,0),"") ->  | D110: =IFERROR(_xlfn.XLOOKUP(TRIM(G110),[1]StudentsNames!$B$2:$B$2012,[1]StudentsNames!$E$2:$E$2012,,0),"") ->  | F110: =IFERROR(_xlfn.XLOOKUP(TRIM(G110),[1]StudentsNames!$B$2:$B$2012,[1]StudentsNames!$F$2:$F$2012,,0),"") ->  | K110: 0
A111: =IFERROR(_xlfn.XLOOKUP(TRIM(G111),[1]StudentsNames!$B$2:$B$2012,[1]StudentsNames!$D$2:$D$2012,,0),"") ->  | D111: =IFERROR(_xlfn.XLOOKUP(TRIM(G111),[1]StudentsNames!$B$2:$B$2012,[1]StudentsNames!$E$2:$E$2012,,0),"") ->  | F111: =IFERROR(_xlfn.XLOOKUP(TRIM(G111),[1]StudentsNames!$B$2:$B$2012,[1]StudentsNames!$F$2:$F$2012,,0),"") ->  | K111: 0
A112: =IFERROR(_xlfn.XLOOKUP(TRIM(G112),[1]StudentsNames!$B$2:$B$2012,[1]StudentsNames!$D$2:$D$2012,,0),"") ->  | D112: =IFERROR(_xlfn.XLOOKUP(TRIM(G112),[1]StudentsNames!$B$2:$B$2012,[1]StudentsNames!$E$2:$E$2012,,0),"") ->  | F112: =IFERROR(_xlfn.XLOOKUP(TRIM(G112),[1]StudentsNames!$B$2:$B$2012,[1]StudentsNames!$F$2:$F$2012,,0),"") ->  | K112: 0
A113: =IFERROR(_xlfn.XLOOKUP(TRIM(G113),[1]StudentsNames!$B$2:$B$2012,[1]StudentsNames!$D$2:$D$2012,,0),"") ->  | D113: =IFERROR(_xlfn.XLOOKUP(TRIM(G113),[1]StudentsNames!$B$2:$B$2012,[1]StudentsNames!$E$2:$E$2012,,0),"") ->  | F113: =IFERROR(_xlfn.XLOOKUP(TRIM(G113),[1]StudentsNames!$B$2:$B$2012,[1]StudentsNames!$F$2:$F$2012,,0),"") ->  | K113: 0
A114: =IFERROR(_xlfn.XLOOKUP(TRIM(G114),[1]StudentsNames!$B$2:$B$2012,[1]StudentsNames!$D$2:$D$2012,,0),"") ->  | D114: =IFERROR(_xlfn.XLOOKUP(TRIM(G114),[1]StudentsNames!$B$2:$B$2012,[1]StudentsNames!$E$2:$E$2012,,0),"") ->  | F114: =IFERROR(_xlfn.XLOOKUP(TRIM(G114),[1]StudentsNames!$B$2:$B$2012,[1]StudentsNames!$F$2:$F$2012,,0),"") ->  | K114: 0
A115: =IFERROR(_xlfn.XLOOKUP(TRIM(G115),[1]StudentsNames!$B$2:$B$2012,[1]StudentsNames!$D$2:$D$2012,,0),"") ->  | D115: =IFERROR(_xlfn.XLOOKUP(TRIM(G115),[1]StudentsNames!$B$2:$B$2012,[1]StudentsNames!$E$2:$E$2012,,0),"") ->  | F115: =IFERROR(_xlfn.XLOOKUP(TRIM(G115),[1]StudentsNames!$B$2:$B$2012,[1]StudentsNames!$F$2:$F$2012,,0),"") ->  | K115: 0
A116: =IFERROR(_xlfn.XLOOKUP(TRIM(G116),[1]StudentsNames!$B$2:$B$2012,[1]StudentsNames!$D$2:$D$2012,,0),"") ->  | D116: =IFERROR(_xlfn.XLOOKUP(TRIM(G116),[1]StudentsNames!$B$2:$B$2012,[1]StudentsNames!$E$2:$E$2012,,0),"") ->  | F116: =IFERROR(_xlfn.XLOOKUP(TRIM(G116),[1]StudentsNames!$B$2:$B$2012,[1]StudentsNames!$F$2:$F$2012,,0),"") ->  | K116: 0
A117: =IFERROR(_xlfn.XLOOKUP(TRIM(G117),[1]StudentsNames!$B$2:$B$2012,[1]StudentsNames!$D$2:$D$2012,,0),"") ->  | D117: =IFERROR(_xlfn.XLOOKUP(TRIM(G117),[1]StudentsNames!$B$2:$B$2012,[1]StudentsNames!$E$2:$E$2012,,0),"") ->  | F117: =IFERROR(_xlfn.XLOOKUP(TRIM(G117),[1]StudentsNames!$B$2:$B$2012,[1]StudentsNames!$F$2:$F$2012,,0),"") ->  | K117: 0
A118: =IFERROR(_xlfn.XLOOKUP(TRIM(G118),[1]StudentsNames!$B$2:$B$2012,[1]StudentsNames!$D$2:$D$2012,,0),"") ->  | D118: =IFERROR(_xlfn.XLOOKUP(TRIM(G118),[1]StudentsNames!$B$2:$B$2012,[1]StudentsNames!$E$2:$E$2012,,0),"") ->  | F118: =IFERROR(_xlfn.XLOOKUP(TRIM(G118),[1]StudentsNames!$B$2:$B$2012,[1]StudentsNames!$F$2:$F$2012,,0),"") ->  | K118: 0
A119: =IFERROR(_xlfn.XLOOKUP(TRIM(G119),[1]StudentsNames!$B$2:$B$2012,[1]StudentsNames!$D$2:$D$2012,,0),"") ->  | D119: =IFERROR(_xlfn.XLOOKUP(TRIM(G119),[1]StudentsNames!$B$2:$B$2012,[1]StudentsNames!$E$2:$E$2012,,0),"") ->  | F119: =IFERROR(_xlfn.XLOOKUP(TRIM(G119),[1]StudentsNames!$B$2:$B$2012,[1]StudentsNames!$F$2:$F$2012,,0),"") ->  | K119: 0
A120: =IFERROR(_xlfn.XLOOKUP(TRIM(G120),[1]StudentsNames!$B$2:$B$2012,[1]StudentsNames!$D$2:$D$2012,,0),"") ->  | D120: =IFERROR(_xlfn.XLOOKUP(TRIM(G120),[1]StudentsNames!$B$2:$B$2012,[1]StudentsNames!$E$2:$E$2012,,0),"") ->  | F120: =IFERROR(_xlfn.XLOOKUP(TRIM(G120),[1]StudentsNames!$B$2:$B$2012,[1]StudentsNames!$F$2:$F$2012,,0),"") ->  | K120: 0
A121: =IFERROR(_xlfn.XLOOKUP(TRIM(G121),[1]StudentsNames!$B$2:$B$2012,[1]StudentsNames!$D$2:$D$2012,,0),"") ->  | D121: =IFERROR(_xlfn.XLOOKUP(TRIM(G121),[1]StudentsNames!$B$2:$B$2012,[1]StudentsNames!$E$2:$E$2012,,0),"") ->  | F121: =IFERROR(_xlfn.XLOOKUP(TRIM(G121),[1]StudentsNames!$B$2:$B$2012,[1]StudentsNames!$F$2:$F$2012,,0),"") ->  | K121: 0
A122: =IFERROR(_xlfn.XLOOKUP(TRIM(G122),[1]StudentsNames!$B$2:$B$2012,[1]StudentsNames!$D$2:$D$2012,,0),"") ->  | D122: =IFERROR(_xlfn.XLOOKUP(TRIM(G122),[1]StudentsNames!$B$2:$B$2012,[1]StudentsNames!$E$2:$E$2012,,0),"") ->  | F122: =IFERROR(_xlfn.XLOOKUP(TRIM(G122),[1]StudentsNames!$B$2:$B$2012,[1]StudentsNames!$F$2:$F$2012,,0),"") ->  | K122: 0
A123: =IFERROR(_xlfn.XLOOKUP(TRIM(G123),[1]StudentsNames!$B$2:$B$2012,[1]StudentsNames!$D$2:$D$2012,,0),"") ->  | D123: =IFERROR(_xlfn.XLOOKUP(TRIM(G123),[1]StudentsNames!$B$2:$B$2012,[1]StudentsNames!$E$2:$E$2012,,0),"") ->  | F123: =IFERROR(_xlfn.XLOOKUP(TRIM(G123),[1]StudentsNames!$B$2:$B$2012,[1]StudentsNames!$F$2:$F$2012,,0),"") ->  | K123: 0
A124: =IFERROR(_xlfn.XLOOKUP(TRIM(G124),[1]StudentsNames!$B$2:$B$2012,[1]StudentsNames!$D$2:$D$2012,,0),"") ->  | D124: =IFERROR(_xlfn.XLOOKUP(TRIM(G124),[1]StudentsNames!$B$2:$B$2012,[1]StudentsNames!$E$2:$E$2012,,0),"") ->  | F124: =IFERROR(_xlfn.XLOOKUP(TRIM(G124),[1]StudentsNames!$B$2:$B$2012,[1]StudentsNames!$F$2:$F$2012,,0),"") ->  | K124: 0
A125: =IFERROR(_xlfn.XLOOKUP(TRIM(G125),[1]StudentsNames!$B$2:$B$2012,[1]StudentsNames!$D$2:$D$2012,,0),"") ->  | D125: =IFERROR(_xlfn.XLOOKUP(TRIM(G125),[1]StudentsNames!$B$2:$B$2012,[1]StudentsNames!$E$2:$E$2012,,0),"") ->  | F125: =IFERROR(_xlfn.XLOOKUP(TRIM(G125),[1]StudentsNames!$B$2:$B$2012,[1]StudentsNames!$F$2:$F$2012,,0),"") ->  | K125: 0
A126: =IFERROR(_xlfn.XLOOKUP(TRIM(G126),[1]StudentsNames!$B$2:$B$2012,[1]StudentsNames!$D$2:$D$2012,,0),"") ->  | D126: =IFERROR(_xlfn.XLOOKUP(TRIM(G126),[1]StudentsNames!$B$2:$B$2012,[1]StudentsNames!$E$2:$E$2012,,0),"") ->  | F126: =IFERROR(_xlfn.XLOOKUP(TRIM(G126),[1]StudentsNames!$B$2:$B$2012,[1]StudentsNames!$F$2:$F$2012,,0),"") ->  | K126: 0
A127: =IFERROR(_xlfn.XLOOKUP(TRIM(G127),[1]StudentsNames!$B$2:$B$2012,[1]StudentsNames!$D$2:$D$2012,,0),"") ->  | D127: =IFERROR(_xlfn.XLOOKUP(TRIM(G127),[1]StudentsNames!$B$2:$B$2012,[1]StudentsNames!$E$2:$E$2012,,0),"") ->  | F127: =IFERROR(_xlfn.XLOOKUP(TRIM(G127),[1]StudentsNames!$B$2:$B$2012,[1]StudentsNames!$F$2:$F$2012,,0),"") ->  | K127: 0
A128: =IFERROR(_xlfn.XLOOKUP(TRIM(G128),[1]StudentsNames!$B$2:$B$2012,[1]StudentsNames!$D$2:$D$2012,,0),"") ->  | D128: =IFERROR(_xlfn.XLOOKUP(TRIM(G128),[1]StudentsNames!$B$2:$B$2012,[1]StudentsNames!$E$2:$E$2012,,0),"") ->  | F128: =IFERROR(_xlfn.XLOOKUP(TRIM(G128),[1]StudentsNames!$B$2:$B$2012,[1]StudentsNames!$F$2:$F$2012,,0),"") ->  | K128: 0
A129: =IFERROR(_xlfn.XLOOKUP(TRIM(G129),[1]StudentsNames!$B$2:$B$2012,[1]StudentsNames!$D$2:$D$2012,,0),"") ->  | D129: =IFERROR(_xlfn.XLOOKUP(TRIM(G129),[1]StudentsNames!$B$2:$B$2012,[1]StudentsNames!$E$2:$E$2012,,0),"") ->  | F129: =IFERROR(_xlfn.XLOOKUP(TRIM(G129),[1]StudentsNames!$B$2:$B$2012,[1]StudentsNames!$F$2:$F$2012,,0),"") ->  | K129: 0
A130: =IFERROR(_xlfn.XLOOKUP(TRIM(G130),[1]StudentsNames!$B$2:$B$2012,[1]StudentsNames!$D$2:$D$2012,,0),"") ->  | D130: =IFERROR(_xlfn.XLOOKUP(TRIM(G130),[1]StudentsNames!$B$2:$B$2012,[1]StudentsNames!$E$2:$E$2012,,0),"") ->  | F130: =IFERROR(_xlfn.XLOOKUP(TRIM(G130),[1]StudentsNames!$B$2:$B$2012,[1]StudentsNames!$F$2:$F$2012,,0),"") ->  | K130: 0
A131: =IFERROR(_xlfn.XLOOKUP(TRIM(G131),[1]StudentsNames!$B$2:$B$2012,[1]StudentsNames!$D$2:$D$2012,,0),"") ->  | D131: =IFERROR(_xlfn.XLOOKUP(TRIM(G131),[1]StudentsNames!$B$2:$B$2012,[1]StudentsNames!$E$2:$E$2012,,0),"") ->  | F131: =IFERROR(_xlfn.XLOOKUP(TRIM(G131),[1]StudentsNames!$B$2:$B$2012,[1]StudentsNames!$F$2:$F$2012,,0),"") ->  | K131: 0
A132: =IFERROR(_xlfn.XLOOKUP(TRIM(G132),[1]StudentsNames!$B$2:$B$2012,[1]StudentsNames!$D$2:$D$2012,,0),"") ->  | D132: =IFERROR(_xlfn.XLOOKUP(TRIM(G132),[1]StudentsNames!$B$2:$B$2012,[1]StudentsNames!$E$2:$E$2012,,0),"") ->  | F132: =IFERROR(_xlfn.XLOOKUP(TRIM(G132),[1]StudentsNames!$B$2:$B$2012,[1]StudentsNames!$F$2:$F$2012,,0),"") ->  | K132: 0
A133: =IFERROR(_xlfn.XLOOKUP(TRIM(G133),[1]StudentsNames!$B$2:$B$2012,[1]StudentsNames!$D$2:$D$2012,,0),"") ->  | D133: =IFERROR(_xlfn.XLOOKUP(TRIM(G133),[1]StudentsNames!$B$2:$B$2012,[1]StudentsNames!$E$2:$E$2012,,0),"") ->  | F133: =IFERROR(_xlfn.XLOOKUP(TRIM(G133),[1]StudentsNames!$B$2:$B$2012,[1]StudentsNames!$F$2:$F$2012,,0),"") ->  | K133: 0
A134: =IFERROR(_xlfn.XLOOKUP(TRIM(G134),[1]StudentsNames!$B$2:$B$2012,[1]StudentsNames!$D$2:$D$2012,,0),"") ->  | D134: =IFERROR(_xlfn.XLOOKUP(TRIM(G134),[1]StudentsNames!$B$2:$B$2012,[1]StudentsNames!$E$2:$E$2012,,0),"") ->  | F134: =IFERROR(_xlfn.XLOOKUP(TRIM(G134),[1]StudentsNames!$B$2:$B$2012,[1]StudentsNames!$F$2:$F$2012,,0),"") ->  | K134: 0
A135: =IFERROR(_xlfn.XLOOKUP(TRIM(G135),[1]StudentsNames!$B$2:$B$2012,[1]StudentsNames!$D$2:$D$2012,,0),"") ->  | D135: =IFERROR(_xlfn.XLOOKUP(TRIM(G135),[1]StudentsNames!$B$2:$B$2012,[1]StudentsNames!$E$2:$E$2012,,0),"") ->  | F135: =IFERROR(_xlfn.XLOOKUP(TRIM(G135),[1]StudentsNames!$B$2:$B$2012,[1]StudentsNames!$F$2:$F$2012,,0),"") ->  | K135: 0
A136: =IFERROR(_xlfn.XLOOKUP(TRIM(G136),[1]StudentsNames!$B$2:$B$2012,[1]StudentsNames!$D$2:$D$2012,,0),"") ->  | D136: =IFERROR(_xlfn.XLOOKUP(TRIM(G136),[1]StudentsNames!$B$2:$B$2012,[1]StudentsNames!$E$2:$E$2012,,0),"") ->  | F136: =IFERROR(_xlfn.XLOOKUP(TRIM(G136),[1]StudentsNames!$B$2:$B$2012,[1]StudentsNames!$F$2:$F$2012,,0),"") ->  | K136: 0
A137: =IFERROR(_xlfn.XLOOKUP(TRIM(G137),[1]StudentsNames!$B$2:$B$2012,[1]StudentsNames!$D$2:$D$2012,,0),"") ->  | D137: =IFERROR(_xlfn.XLOOKUP(TRIM(G137),[1]StudentsNames!$B$2:$B$2012,[1]StudentsNames!$E$2:$E$2012,,0),"") ->  | F137: =IFERROR(_xlfn.XLOOKUP(TRIM(G137),[1]StudentsNames!$B$2:$B$2012,[1]StudentsNames!$F$2:$F$2012,,0),"") ->  | K137: 0
A138: =IFERROR(_xlfn.XLOOKUP(TRIM(G138),[1]StudentsNames!$B$2:$B$2012,[1]StudentsNames!$D$2:$D$2012,,0),"") ->  | D138: =IFERROR(_xlfn.XLOOKUP(TRIM(G138),[1]StudentsNames!$B$2:$B$2012,[1]StudentsNames!$E$2:$E$2012,,0),"") ->  | F138: =IFERROR(_xlfn.XLOOKUP(TRIM(G138),[1]StudentsNames!$B$2:$B$2012,[1]StudentsNames!$F$2:$F$2012,,0),"") ->  | K138: 0
A139: =IFERROR(_xlfn.XLOOKUP(TRIM(G139),[1]StudentsNames!$B$2:$B$2012,[1]StudentsNames!$D$2:$D$2012,,0),"") ->  | D139: =IFERROR(_xlfn.XLOOKUP(TRIM(G139),[1]StudentsNames!$B$2:$B$2012,[1]StudentsNames!$E$2:$E$2012,,0),"") ->  | F139: =IFERROR(_xlfn.XLOOKUP(TRIM(G139),[1]StudentsNames!$B$2:$B$2012,[1]StudentsNames!$F$2:$F$2012,,0),"") ->  | K139: 0
A140: =IFERROR(_xlfn.XLOOKUP(TRIM(G140),[1]StudentsNames!$B$2:$B$2012,[1]StudentsNames!$D$2:$D$2012,,0),"") ->  | D140: =IFERROR(_xlfn.XLOOKUP(TRIM(G140),[1]StudentsNames!$B$2:$B$2012,[1]StudentsNames!$E$2:$E$2012,,0),"") ->  | F140: =IFERROR(_xlfn.XLOOKUP(TRIM(G140),[1]StudentsNames!$B$2:$B$2012,[1]StudentsNames!$F$2:$F$2012,,0),"") ->  | K140: =IFERROR(_xlfn.XLOOKUP(I140,$P$12:$P$14,$Q$12:$Q$14,,1),I140) -> 0
A141: =IFERROR(_xlfn.XLOOKUP(TRIM(G141),[1]StudentsNames!$B$2:$B$2012,[1]StudentsNames!$D$2:$D$2012,,0),"") ->  | D141: =IFERROR(_xlfn.XLOOKUP(TRIM(G141),[1]StudentsNames!$B$2:$B$2012,[1]StudentsNames!$E$2:$E$2012,,0),"") ->  | F141: =IFERROR(_xlfn.XLOOKUP(TRIM(G141),[1]StudentsNames!$B$2:$B$2012,[1]StudentsNames!$F$2:$F$2012,,0),"") ->  | J141: =SUBSTITUTE(SUBSTITUTE(I141,CHAR(13),""),CHAR(10),"") ->  | K141: 0
A142: =IFERROR(_xlfn.XLOOKUP(TRIM(G142),[1]StudentsNames!$B$2:$B$2012,[1]StudentsNames!$D$2:$D$2012,,0),"") ->  | D142: =IFERROR(_xlfn.XLOOKUP(TRIM(G142),[1]StudentsNames!$B$2:$B$2012,[1]StudentsNames!$E$2:$E$2012,,0),"") ->  | F142: =IFERROR(_xlfn.XLOOKUP(TRIM(G142),[1]StudentsNames!$B$2:$B$2012,[1]StudentsNames!$F$2:$F$2012,,0),"") ->  | K142: 0
A143: =IFERROR(_xlfn.XLOOKUP(TRIM(G143),[1]StudentsNames!$B$2:$B$2012,[1]StudentsNames!$D$2:$D$2012,,0),"") ->  | D143: =IFERROR(_xlfn.XLOOKUP(TRIM(G143),[1]StudentsNames!$B$2:$B$2012,[1]StudentsNames!$E$2:$E$2012,,0),"") ->  | F143: =IFERROR(_xlfn.XLOOKUP(TRIM(G143),[1]StudentsNames!$B$2:$B$2012,[1]StudentsNames!$F$2:$F$2012,,0),"") ->  | K143: 0
A144: =IFERROR(_xlfn.XLOOKUP(TRIM(G144),[1]StudentsNames!$B$2:$B$2012,[1]StudentsNames!$D$2:$D$2012,,0),"") ->  | D144: =IFERROR(_xlfn.XLOOKUP(TRIM(G144),[1]StudentsNames!$B$2:$B$2012,[1]StudentsNames!$E$2:$E$2012,,0),"") ->  | F144: =IFERROR(_xlfn.XLOOKUP(TRIM(G144),[1]StudentsNames!$B$2:$B$2012,[1]StudentsNames!$F$2:$F$2012,,0),"") ->  | K144: 0
A145: =IFERROR(_xlfn.XLOOKUP(TRIM(G145),[1]StudentsNames!$B$2:$B$2012,[1]StudentsNames!$D$2:$D$2012,,0),"") ->  | D145: =IFERROR(_xlfn.XLOOKUP(TRIM(G145),[1]StudentsNames!$B$2:$B$2012,[1]StudentsNames!$E$2:$E$2012,,0),"") ->  | F145: =IFERROR(_xlfn.XLOOKUP(TRIM(G145),[1]StudentsNames!$B$2:$B$2012,[1]StudentsNames!$F$2:$F$2012,,0),"") ->  | K145: 0
A146: =IFERROR(_xlfn.XLOOKUP(TRIM(G146),[1]StudentsNames!$B$2:$B$2012,[1]StudentsNames!$D$2:$D$2012,,0),"") ->  | D146: =IFERROR(_xlfn.XLOOKUP(TRIM(G146),[1]StudentsNames!$B$2:$B$2012,[1]StudentsNames!$E$2:$E$2012,,0),"") ->  | F146: =IFERROR(_xlfn.XLOOKUP(TRIM(G146),[1]StudentsNames!$B$2:$B$2012,[1]StudentsNames!$F$2:$F$2012,,0),"") ->  | K146: 0
A147: =IFERROR(_xlfn.XLOOKUP(TRIM(G147),[1]StudentsNames!$B$2:$B$2012,[1]StudentsNames!$D$2:$D$2012,,0),"") ->  | D147: =IFERROR(_xlfn.XLOOKUP(TRIM(G147),[1]StudentsNames!$B$2:$B$2012,[1]StudentsNames!$E$2:$E$2012,,0),"") ->  | F147: =IFERROR(_xlfn.XLOOKUP(TRIM(G147),[1]StudentsNames!$B$2:$B$2012,[1]StudentsNames!$F$2:$F$2012,,0),"") ->  | K147: 0
A148: =IFERROR(_xlfn.XLOOKUP(TRIM(G148),[1]StudentsNames!$B$2:$B$2012,[1]StudentsNames!$D$2:$D$2012,,0),"") ->  | D148: =IFERROR(_xlfn.XLOOKUP(TRIM(G148),[1]StudentsNames!$B$2:$B$2012,[1]StudentsNames!$E$2:$E$2012,,0),"") ->  | F148: =IFERROR(_xlfn.XLOOKUP(TRIM(G148),[1]StudentsNames!$B$2:$B$2012,[1]StudentsNames!$F$2:$F$2012,,0),"") ->  | K148: 0
A149: =IFERROR(_xlfn.XLOOKUP(TRIM(G149),[1]StudentsNames!$B$2:$B$2012,[1]StudentsNames!$D$2:$D$2012,,0),"") ->  | D149: =IFERROR(_xlfn.XLOOKUP(TRIM(G149),[1]StudentsNames!$B$2:$B$2012,[1]StudentsNames!$E$2:$E$2012,,0),"") ->  | F149: =IFERROR(_xlfn.XLOOKUP(TRIM(G149),[1]StudentsNames!$B$2:$B$2012,[1]StudentsNames!$F$2:$F$2012,,0),"") ->  | K149: 0
A150: =IFERROR(_xlfn.XLOOKUP(TRIM(G150),[1]StudentsNames!$B$2:$B$2012,[1]StudentsNames!$D$2:$D$2012,,0),"") ->  | D150: =IFERROR(_xlfn.XLOOKUP(TRIM(G150),[1]StudentsNames!$B$2:$B$2012,[1]StudentsNames!$E$2:$E$2012,,0),"") ->  | F150: =IFERROR(_xlfn.XLOOKUP(TRIM(G150),[1]StudentsNames!$B$2:$B$2012,[1]StudentsNames!$F$2:$F$2012,,0),"") ->  | K150: 0
A151: =IFERROR(_xlfn.XLOOKUP(TRIM(G151),[1]StudentsNames!$B$2:$B$2012,[1]StudentsNames!$D$2:$D$2012,,0),"") ->  | D151: =IFERROR(_xlfn.XLOOKUP(TRIM(G151),[1]StudentsNames!$B$2:$B$2012,[1]StudentsNames!$E$2:$E$2012,,0),"") ->  | F151: =IFERROR(_xlfn.XLOOKUP(TRIM(G151),[1]StudentsNames!$B$2:$B$2012,[1]StudentsNames!$F$2:$F$2012,,0),"") ->  | K151: 0
A152: =IFERROR(_xlfn.XLOOKUP(TRIM(G152),[1]StudentsNames!$B$2:$B$2012,[1]StudentsNames!$D$2:$D$2012,,0),"") ->  | D152: =IFERROR(_xlfn.XLOOKUP(TRIM(G152),[1]StudentsNames!$B$2:$B$2012,[1]StudentsNames!$E$2:$E$2012,,0),"") ->  | F152: =IFERROR(_xlfn.XLOOKUP(TRIM(G152),[1]StudentsNames!$B$2:$B$2012,[1]StudentsNames!$F$2:$F$2012,,0),"") ->  | K152: 0
A153: =IFERROR(_xlfn.XLOOKUP(TRIM(G153),[1]StudentsNames!$B$2:$B$2012,[1]StudentsNames!$D$2:$D$2012,,0),"") ->  | D153: =IFERROR(_xlfn.XLOOKUP(TRIM(G153),[1]StudentsNames!$B$2:$B$2012,[1]StudentsNames!$E$2:$E$2012,,0),"") ->  | F153: =IFERROR(_xlfn.XLOOKUP(TRIM(G153),[1]StudentsNames!$B$2:$B$2012,[1]StudentsNames!$F$2:$F$2012,,0),"") ->  | K153: 0
A154: =IFERROR(_xlfn.XLOOKUP(TRIM(G154),[1]StudentsNames!$B$2:$B$2012,[1]StudentsNames!$D$2:$D$2012,,0),"") ->  | D154: =IFERROR(_xlfn.XLOOKUP(TRIM(G154),[1]StudentsNames!$B$2:$B$2012,[1]StudentsNames!$E$2:$E$2012,,0),"") ->  | F154: =IFERROR(_xlfn.XLOOKUP(TRIM(G154),[1]StudentsNames!$B$2:$B$2012,[1]StudentsNames!$F$2:$F$2012,,0),"") ->  | K154: 0
A155: =IFERROR(_xlfn.XLOOKUP(TRIM(G155),[1]StudentsNames!$B$2:$B$2012,[1]StudentsNames!$D$2:$D$2012,,0),"") ->  | D155: =IFERROR(_xlfn.XLOOKUP(TRIM(G155),[1]StudentsNames!$B$2:$B$2012,[1]StudentsNames!$E$2:$E$2012,,0),"") ->  | F155: =IFERROR(_xlfn.XLOOKUP(TRIM(G155),[1]StudentsNames!$B$2:$B$2012,[1]StudentsNames!$F$2:$F$2012,,0),"") ->  | K155: 0
A156: =IFERROR(_xlfn.XLOOKUP(TRIM(G156),[1]StudentsNames!$B$2:$B$2012,[1]StudentsNames!$D$2:$D$2012,,0),"") ->  | D156: =IFERROR(_xlfn.XLOOKUP(TRIM(G156),[1]StudentsNames!$B$2:$B$2012,[1]StudentsNames!$E$2:$E$2012,,0),"") ->  | F156: =IFERROR(_xlfn.XLOOKUP(TRIM(G156),[1]StudentsNames!$B$2:$B$2012,[1]StudentsNames!$F$2:$F$2012,,0),"") ->  | K156: 0
A157: =IFERROR(_xlfn.XLOOKUP(TRIM(G157),[1]StudentsNames!$B$2:$B$2012,[1]StudentsNames!$D$2:$D$2012,,0),"") ->  | D157: =IFERROR(_xlfn.XLOOKUP(TRIM(G157),[1]StudentsNames!$B$2:$B$2012,[1]StudentsNames!$E$2:$E$2012,,0),"") ->  | F157: =IFERROR(_xlfn.XLOOKUP(TRIM(G157),[1]StudentsNames!$B$2:$B$2012,[1]StudentsNames!$F$2:$F$2012,,0),"") ->  | K157: 0
A158: =IFERROR(_xlfn.XLOOKUP(TRIM(G158),[1]StudentsNames!$B$2:$B$2012,[1]StudentsNames!$D$2:$D$2012,,0),"") ->  | D158: =IFERROR(_xlfn.XLOOKUP(TRIM(G158),[1]StudentsNames!$B$2:$B$2012,[1]StudentsNames!$E$2:$E$2012,,0),"") ->  | F158: =IFERROR(_xlfn.XLOOKUP(TRIM(G158),[1]StudentsNames!$B$2:$B$2012,[1]StudentsNames!$F$2:$F$2012,,0),"") ->  | K158: 0
A159: =IFERROR(_xlfn.XLOOKUP(TRIM(G159),[1]StudentsNames!$B$2:$B$2012,[1]StudentsNames!$D$2:$D$2012,,0),"") ->  | D159: =IFERROR(_xlfn.XLOOKUP(TRIM(G159),[1]StudentsNames!$B$2:$B$2012,[1]StudentsNames!$E$2:$E$2012,,0),"") ->  | F159: =IFERROR(_xlfn.XLOOKUP(TRIM(G159),[1]StudentsNames!$B$2:$B$2012,[1]StudentsNames!$F$2:$F$2012,,0),"") ->  | K159: 0
A160: =IFERROR(_xlfn.XLOOKUP(TRIM(G160),[1]StudentsNames!$B$2:$B$2012,[1]StudentsNames!$D$2:$D$2012,,0),"") ->  | D160: =IFERROR(_xlfn.XLOOKUP(TRIM(G160),[1]StudentsNames!$B$2:$B$2012,[1]StudentsNames!$E$2:$E$2012,,0),"") ->  | F160: =IFERROR(_xlfn.XLOOKUP(TRIM(G160),[1]StudentsNames!$B$2:$B$2012,[1]StudentsNames!$F$2:$F$2012,,0),"") ->  | K160: 0
A161: =IFERROR(_xlfn.XLOOKUP(TRIM(G161),[1]StudentsNames!$B$2:$B$2012,[1]StudentsNames!$D$2:$D$2012,,0),"") ->  | D161: =IFERROR(_xlfn.XLOOKUP(TRIM(G161),[1]StudentsNames!$B$2:$B$2012,[1]StudentsNames!$E$2:$E$2012,,0),"") ->  | F161: =IFERROR(_xlfn.XLOOKUP(TRIM(G161),[1]StudentsNames!$B$2:$B$2012,[1]StudentsNames!$F$2:$F$2012,,0),"") ->  | K161: 0
A162: =IFERROR(_xlfn.XLOOKUP(TRIM(G162),[1]StudentsNames!$B$2:$B$2012,[1]StudentsNames!$D$2:$D$2012,,0),"") ->  | D162: =IFERROR(_xlfn.XLOOKUP(TRIM(G162),[1]StudentsNames!$B$2:$B$2012,[1]StudentsNames!$E$2:$E$2012,,0),"") ->  | F162: =IFERROR(_xlfn.XLOOKUP(TRIM(G162),[1]StudentsNames!$B$2:$B$2012,[1]StudentsNames!$F$2:$F$2012,,0),"") ->  | K162: 0
A163: =IFERROR(_xlfn.XLOOKUP(TRIM(G163),[1]StudentsNames!$B$2:$B$2012,[1]StudentsNames!$D$2:$D$2012,,0),"") ->  | D163: =IFERROR(_xlfn.XLOOKUP(TRIM(G163),[1]StudentsNames!$B$2:$B$2012,[1]StudentsNames!$E$2:$E$2012,,0),"") ->  | F163: =IFERROR(_xlfn.XLOOKUP(TRIM(G163),[1]StudentsNames!$B$2:$B$2012,[1]StudentsNames!$F$2:$F$2012,,0),"") ->  | K163: 0
A164: =IFERROR(_xlfn.XLOOKUP(TRIM(G164),[1]StudentsNames!$B$2:$B$2012,[1]StudentsNames!$D$2:$D$2012,,0),"") ->  | D164: =IFERROR(_xlfn.XLOOKUP(TRIM(G164),[1]StudentsNames!$B$2:$B$2012,[1]StudentsNames!$E$2:$E$2012,,0),"") ->  | F164: =IFERROR(_xlfn.XLOOKUP(TRIM(G164),[1]StudentsNames!$B$2:$B$2012,[1]StudentsNames!$F$2:$F$2012,,0),"") ->  | K164: 0
A165: =IFERROR(_xlfn.XLOOKUP(TRIM(G165),[1]StudentsNames!$B$2:$B$2012,[1]StudentsNames!$D$2:$D$2012,,0),"") ->  | D165: =IFERROR(_xlfn.XLOOKUP(TRIM(G165),[1]StudentsNames!$B$2:$B$2012,[1]StudentsNames!$E$2:$E$2012,,0),"") ->  | F165: =IFERROR(_xlfn.XLOOKUP(TRIM(G165),[1]StudentsNames!$B$2:$B$2012,[1]StudentsNames!$F$2:$F$2012,,0),"") ->  | K165: 0
A166: =IFERROR(_xlfn.XLOOKUP(TRIM(G166),[1]StudentsNames!$B$2:$B$2012,[1]StudentsNames!$D$2:$D$2012,,0),"") ->  | D166: =IFERROR(_xlfn.XLOOKUP(TRIM(G166),[1]StudentsNames!$B$2:$B$2012,[1]StudentsNames!$E$2:$E$2012,,0),"") ->  | F166: =IFERROR(_xlfn.XLOOKUP(TRIM(G166),[1]StudentsNames!$B$2:$B$2012,[1]StudentsNames!$F$2:$F$2012,,0),"") ->  | K166: 0
A167: =IFERROR(_xlfn.XLOOKUP(TRIM(G167),[1]StudentsNames!$B$2:$B$2012,[1]StudentsNames!$D$2:$D$2012,,0),"") ->  | D167: =IFERROR(_xlfn.XLOOKUP(TRIM(G167),[1]StudentsNames!$B$2:$B$2012,[1]StudentsNames!$E$2:$E$2012,,0),"") ->  | F167: =IFERROR(_xlfn.XLOOKUP(TRIM(G167),[1]StudentsNames!$B$2:$B$2012,[1]StudentsNames!$F$2:$F$2012,,0),"") ->  | K167: 0
A168: =IFERROR(_xlfn.XLOOKUP(TRIM(G168),[1]StudentsNames!$B$2:$B$2012,[1]StudentsNames!$D$2:$D$2012,,0),"") ->  | D168: =IFERROR(_xlfn.XLOOKUP(TRIM(G168),[1]StudentsNames!$B$2:$B$2012,[1]StudentsNames!$E$2:$E$2012,,0),"") ->  | F168: =IFERROR(_xlfn.XLOOKUP(TRIM(G168),[1]StudentsNames!$B$2:$B$2012,[1]StudentsNames!$F$2:$F$2012,,0),"") ->  | K168: 0
A169: =IFERROR(_xlfn.XLOOKUP(TRIM(G169),[1]StudentsNames!$B$2:$B$2012,[1]StudentsNames!$D$2:$D$2012,,0),"") ->  | D169: =IFERROR(_xlfn.XLOOKUP(TRIM(G169),[1]StudentsNames!$B$2:$B$2012,[1]StudentsNames!$E$2:$E$2012,,0),"") ->  | F169: =IFERROR(_xlfn.XLOOKUP(TRIM(G169),[1]StudentsNames!$B$2:$B$2012,[1]StudentsNames!$F$2:$F$2012,,0),"") ->  | K169: 0
A170: =IFERROR(_xlfn.XLOOKUP(TRIM(G170),[1]StudentsNames!$B$2:$B$2012,[1]StudentsNames!$D$2:$D$2012,,0),"") ->  | D170: =IFERROR(_xlfn.XLOOKUP(TRIM(G170),[1]StudentsNames!$B$2:$B$2012,[1]StudentsNames!$E$2:$E$2012,,0),"") ->  | F170: =IFERROR(_xlfn.XLOOKUP(TRIM(G170),[1]StudentsNames!$B$2:$B$2012,[1]StudentsNames!$F$2:$F$2012,,0),"") ->  | K170: 0
A171: =IFERROR(_xlfn.XLOOKUP(TRIM(G171),[1]StudentsNames!$B$2:$B$2012,[1]StudentsNames!$D$2:$D$2012,,0),"") ->  | D171: =IFERROR(_xlfn.XLOOKUP(TRIM(G171),[1]StudentsNames!$B$2:$B$2012,[1]StudentsNames!$E$2:$E$2012,,0),"") ->  | F171: =IFERROR(_xlfn.XLOOKUP(TRIM(G171),[1]StudentsNames!$B$2:$B$2012,[1]StudentsNames!$F$2:$F$2012,,0),"") ->  | K171: 0
A172: =IFERROR(_xlfn.XLOOKUP(TRIM(G172),[1]StudentsNames!$B$2:$B$2012,[1]StudentsNames!$D$2:$D$2012,,0),"") ->  | D172: =IFERROR(_xlfn.XLOOKUP(TRIM(G172),[1]StudentsNames!$B$2:$B$2012,[1]StudentsNames!$E$2:$E$2012,,0),"") ->  | F172: =IFERROR(_xlfn.XLOOKUP(TRIM(G172),[1]StudentsNames!$B$2:$B$2012,[1]StudentsNames!$F$2:$F$2012,,0),"") ->  | K172: 0
A173: =IFERROR(_xlfn.XLOOKUP(TRIM(G173),[1]StudentsNames!$B$2:$B$2012,[1]StudentsNames!$D$2:$D$2012,,0),"") ->  | D173: =IFERROR(_xlfn.XLOOKUP(TRIM(G173),[1]StudentsNames!$B$2:$B$2012,[1]StudentsNames!$E$2:$E$2012,,0),"") ->  | F173: =IFERROR(_xlfn.XLOOKUP(TRIM(G173),[1]StudentsNames!$B$2:$B$2012,[1]StudentsNames!$F$2:$F$2012,,0),"") ->  | K173: 0
A174: =IFERROR(_xlfn.XLOOKUP(TRIM(G174),[1]StudentsNames!$B$2:$B$2012,[1]StudentsNames!$D$2:$D$2012,,0),"") ->  | D174: =IFERROR(_xlfn.XLOOKUP(TRIM(G174),[1]StudentsNames!$B$2:$B$2012,[1]StudentsNames!$E$2:$E$2012,,0),"") ->  | F174: =IFERROR(_xlfn.XLOOKUP(TRIM(G174),[1]StudentsNames!$B$2:$B$2012,[1]StudentsNames!$F$2:$F$2012,,0),"") ->  | K174: 0
A175: =IFERROR(_xlfn.XLOOKUP(TRIM(G175),[1]StudentsNames!$B$2:$B$2012,[1]StudentsNames!$D$2:$D$2012,,0),"") ->  | D175: =IFERROR(_xlfn.XLOOKUP(TRIM(G175),[1]StudentsNames!$B$2:$B$2012,[1]StudentsNames!$E$2:$E$2012,,0),"") ->  | F175: =IFERROR(_xlfn.XLOOKUP(TRIM(G175),[1]StudentsNames!$B$2:$B$2012,[1]StudentsNames!$F$2:$F$2012,,0),"") ->  | K175: 0
A176: =IFERROR(_xlfn.XLOOKUP(TRIM(G176),[1]StudentsNames!$B$2:$B$2012,[1]StudentsNames!$D$2:$D$2012,,0),"") ->  | D176: =IFERROR(_xlfn.XLOOKUP(TRIM(G176),[1]StudentsNames!$B$2:$B$2012,[1]StudentsNames!$E$2:$E$2012,,0),"") ->  | F176: =IFERROR(_xlfn.XLOOKUP(TRIM(G176),[1]StudentsNames!$B$2:$B$2012,[1]StudentsNames!$F$2:$F$2012,,0),"") ->  | K176: 0
A177: =IFERROR(_xlfn.XLOOKUP(TRIM(G177),[1]StudentsNames!$B$2:$B$2012,[1]StudentsNames!$D$2:$D$2012,,0),"") ->  | D177: =IFERROR(_xlfn.XLOOKUP(TRIM(G177),[1]StudentsNames!$B$2:$B$2012,[1]StudentsNames!$E$2:$E$2012,,0),"") ->  | F177: =IFERROR(_xlfn.XLOOKUP(TRIM(G177),[1]StudentsNames!$B$2:$B$2012,[1]StudentsNames!$F$2:$F$2012,,0),"") ->  | K177: 0
A178: =IFERROR(_xlfn.XLOOKUP(TRIM(G178),[1]StudentsNames!$B$2:$B$2012,[1]StudentsNames!$D$2:$D$2012,,0),"") ->  | D178: =IFERROR(_xlfn.XLOOKUP(TRIM(G178),[1]StudentsNames!$B$2:$B$2012,[1]StudentsNames!$E$2:$E$2012,,0),"") ->  | F178: =IFERROR(_xlfn.XLOOKUP(TRIM(G178),[1]StudentsNames!$B$2:$B$2012,[1]StudentsNames!$F$2:$F$2012,,0),"") ->  | K178: 0
A179: =IFERROR(_xlfn.XLOOKUP(TRIM(G179),[1]StudentsNames!$B$2:$B$2012,[1]StudentsNames!$D$2:$D$2012,,0),"") ->  | D179: =IFERROR(_xlfn.XLOOKUP(TRIM(G179),[1]StudentsNames!$B$2:$B$2012,[1]StudentsNames!$E$2:$E$2012,,0),"") ->  | F179: =IFERROR(_xlfn.XLOOKUP(TRIM(G179),[1]StudentsNames!$B$2:$B$2012,[1]StudentsNames!$F$2:$F$2012,,0),"") ->  | K179: 0
A180: =IFERROR(_xlfn.XLOOKUP(TRIM(G180),[1]StudentsNames!$B$2:$B$2012,[1]StudentsNames!$D$2:$D$2012,,0),"") ->  | D180: =IFERROR(_xlfn.XLOOKUP(TRIM(G180),[1]StudentsNames!$B$2:$B$2012,[1]StudentsNames!$E$2:$E$2012,,0),"") ->  | F180: =IFERROR(_xlfn.XLOOKUP(TRIM(G180),[1]StudentsNames!$B$2:$B$2012,[1]StudentsNames!$F$2:$F$2012,,0),"") ->  | K180: 0
A181: =IFERROR(_xlfn.XLOOKUP(TRIM(G181),[1]StudentsNames!$B$2:$B$2012,[1]StudentsNames!$D$2:$D$2012,,0),"") ->  | D181: =IFERROR(_xlfn.XLOOKUP(TRIM(G181),[1]StudentsNames!$B$2:$B$2012,[1]StudentsNames!$E$2:$E$2012,,0),"") ->  | F181: =IFERROR(_xlfn.XLOOKUP(TRIM(G181),[1]StudentsNames!$B$2:$B$2012,[1]StudentsNames!$F$2:$F$2012,,0),"") ->  | K181: 0
A182: =IFERROR(_xlfn.XLOOKUP(TRIM(G182),[1]StudentsNames!$B$2:$B$2012,[1]StudentsNames!$D$2:$D$2012,,0),"") ->  | D182: =IFERROR(_xlfn.XLOOKUP(TRIM(G182),[1]StudentsNames!$B$2:$B$2012,[1]StudentsNames!$E$2:$E$2012,,0),"") ->  | F182: =IFERROR(_xlfn.XLOOKUP(TRIM(G182),[1]StudentsNames!$B$2:$B$2012,[1]StudentsNames!$F$2:$F$2012,,0),"") ->  | K182: 0
A183: =IFERROR(_xlfn.XLOOKUP(TRIM(G183),[1]StudentsNames!$B$2:$B$2012,[1]StudentsNames!$D$2:$D$2012,,0),"") ->  | D183: =IFERROR(_xlfn.XLOOKUP(TRIM(G183),[1]StudentsNames!$B$2:$B$2012,[1]StudentsNames!$E$2:$E$2012,,0),"") ->  | F183: =IFERROR(_xlfn.XLOOKUP(TRIM(G183),[1]StudentsNames!$B$2:$B$2012,[1]StudentsNames!$F$2:$F$2012,,0),"") ->  | K183: 0
A184: =IFERROR(_xlfn.XLOOKUP(TRIM(G184),[1]StudentsNames!$B$2:$B$2012,[1]StudentsNames!$D$2:$D$2012,,0),"") ->  | D184: =IFERROR(_xlfn.XLOOKUP(TRIM(G184),[1]StudentsNames!$B$2:$B$2012,[1]StudentsNames!$E$2:$E$2012,,0),"") ->  | F184: =IFERROR(_xlfn.XLOOKUP(TRIM(G184),[1]StudentsNames!$B$2:$B$2012,[1]StudentsNames!$F$2:$F$2012,,0),"") ->  | K184: 0
A185: =IFERROR(_xlfn.XLOOKUP(TRIM(G185),[1]StudentsNames!$B$2:$B$2012,[1]StudentsNames!$D$2:$D$2012,,0),"") ->  | D185: =IFERROR(_xlfn.XLOOKUP(TRIM(G185),[1]StudentsNames!$B$2:$B$2012,[1]StudentsNames!$E$2:$E$2012,,0),"") ->  | F185: =IFERROR(_xlfn.XLOOKUP(TRIM(G185),[1]StudentsNames!$B$2:$B$2012,[1]StudentsNames!$F$2:$F$2012,,0),"") ->  | K185: 0
A186: =IFERROR(_xlfn.XLOOKUP(TRIM(G186),[1]StudentsNames!$B$2:$B$2012,[1]StudentsNames!$D$2:$D$2012,,0),"") ->  | D186: =IFERROR(_xlfn.XLOOKUP(TRIM(G186),[1]StudentsNames!$B$2:$B$2012,[1]StudentsNames!$E$2:$E$2012,,0),"") ->  | F186: =IFERROR(_xlfn.XLOOKUP(TRIM(G186),[1]StudentsNames!$B$2:$B$2012,[1]StudentsNames!$F$2:$F$2012,,0),"") ->  | K186: 0
A187: =IFERROR(_xlfn.XLOOKUP(TRIM(G187),[1]StudentsNames!$B$2:$B$2012,[1]StudentsNames!$D$2:$D$2012,,0),"") ->  | D187: =IFERROR(_xlfn.XLOOKUP(TRIM(G187),[1]StudentsNames!$B$2:$B$2012,[1]StudentsNames!$E$2:$E$2012,,0),"") ->  | F187: =IFERROR(_xlfn.XLOOKUP(TRIM(G187),[1]StudentsNames!$B$2:$B$2012,[1]StudentsNames!$F$2:$F$2012,,0),"") ->  | K187: 0
A188: =IFERROR(_xlfn.XLOOKUP(TRIM(G188),[1]StudentsNames!$B$2:$B$2012,[1]StudentsNames!$D$2:$D$2012,,0),"") ->  | D188: =IFERROR(_xlfn.XLOOKUP(TRIM(G188),[1]StudentsNames!$B$2:$B$2012,[1]StudentsNames!$E$2:$E$2012,,0),"") ->  | F188: =IFERROR(_xlfn.XLOOKUP(TRIM(G188),[1]StudentsNames!$B$2:$B$2012,[1]StudentsNames!$F$2:$F$2012,,0),"") ->  | K188: 0
A189: =IFERROR(_xlfn.XLOOKUP(TRIM(G189),[1]StudentsNames!$B$2:$B$2012,[1]StudentsNames!$D$2:$D$2012,,0),"") ->  | D189: =IFERROR(_xlfn.XLOOKUP(TRIM(G189),[1]StudentsNames!$B$2:$B$2012,[1]StudentsNames!$E$2:$E$2012,,0),"") ->  | F189: =IFERROR(_xlfn.XLOOKUP(TRIM(G189),[1]StudentsNames!$B$2:$B$2012,[1]StudentsNames!$F$2:$F$2012,,0),"") ->  | K189: 0
A190: =IFERROR(_xlfn.XLOOKUP(TRIM(G190),[1]StudentsNames!$B$2:$B$2012,[1]StudentsNames!$D$2:$D$2012,,0),"") ->  | D190: =IFERROR(_xlfn.XLOOKUP(TRIM(G190),[1]StudentsNames!$B$2:$B$2012,[1]StudentsNames!$E$2:$E$2012,,0),"") ->  | F190: =IFERROR(_xlfn.XLOOKUP(TRIM(G190),[1]StudentsNames!$B$2:$B$2012,[1]StudentsNames!$F$2:$F$2012,,0),"") ->  | K190: 0
A191: =IFERROR(_xlfn.XLOOKUP(TRIM(G191),[1]StudentsNames!$B$2:$B$2012,[1]StudentsNames!$D$2:$D$2012,,0),"") ->  | D191: =IFERROR(_xlfn.XLOOKUP(TRIM(G191),[1]StudentsNames!$B$2:$B$2012,[1]StudentsNames!$E$2:$E$2012,,0),"") ->  | F191: =IFERROR(_xlfn.XLOOKUP(TRIM(G191),[1]StudentsNames!$B$2:$B$2012,[1]StudentsNames!$F$2:$F$2012,,0),"") ->  | K191: 0
A192: =IFERROR(_xlfn.XLOOKUP(TRIM(G192),[1]StudentsNames!$B$2:$B$2012,[1]StudentsNames!$D$2:$D$2012,,0),"") ->  | D192: =IFERROR(_xlfn.XLOOKUP(TRIM(G192),[1]StudentsNames!$B$2:$B$2012,[1]StudentsNames!$E$2:$E$2012,,0),"") ->  | F192: =IFERROR(_xlfn.XLOOKUP(TRIM(G192),[1]StudentsNames!$B$2:$B$2012,[1]StudentsNames!$F$2:$F$2012,,0),"") ->  | K192: 0
A193: =IFERROR(_xlfn.XLOOKUP(TRIM(G193),[1]StudentsNames!$B$2:$B$2012,[1]StudentsNames!$D$2:$D$2012,,0),"") ->  | D193: =IFERROR(_xlfn.XLOOKUP(TRIM(G193),[1]StudentsNames!$B$2:$B$2012,[1]StudentsNames!$E$2:$E$2012,,0),"") ->  | F193: =IFERROR(_xlfn.XLOOKUP(TRIM(G193),[1]StudentsNames!$B$2:$B$2012,[1]StudentsNames!$F$2:$F$2012,,0),"") ->  | K193: 0
A194: =IFERROR(_xlfn.XLOOKUP(TRIM(G194),[1]StudentsNames!$B$2:$B$2012,[1]StudentsNames!$D$2:$D$2012,,0),"") ->  | D194: =IFERROR(_xlfn.XLOOKUP(TRIM(G194),[1]StudentsNames!$B$2:$B$2012,[1]StudentsNames!$E$2:$E$2012,,0),"") ->  | F194: =IFERROR(_xlfn.XLOOKUP(TRIM(G194),[1]StudentsNames!$B$2:$B$2012,[1]StudentsNames!$F$2:$F$2012,,0),"") ->  | K194: 0
A195: =IFERROR(_xlfn.XLOOKUP(TRIM(G195),[1]StudentsNames!$B$2:$B$2012,[1]StudentsNames!$D$2:$D$2012,,0),"") ->  | D195: =IFERROR(_xlfn.XLOOKUP(TRIM(G195),[1]StudentsNames!$B$2:$B$2012,[1]StudentsNames!$E$2:$E$2012,,0),"") ->  | F195: =IFERROR(_xlfn.XLOOKUP(TRIM(G195),[1]StudentsNames!$B$2:$B$2012,[1]StudentsNames!$F$2:$F$2012,,0),"") ->  | K195: 0
A196: =IFERROR(_xlfn.XLOOKUP(TRIM(G196),[1]StudentsNames!$B$2:$B$2012,[1]StudentsNames!$D$2:$D$2012,,0),"") ->  | D196: =IFERROR(_xlfn.XLOOKUP(TRIM(G196),[1]StudentsNames!$B$2:$B$2012,[1]StudentsNames!$E$2:$E$2012,,0),"") ->  | F196: =IFERROR(_xlfn.XLOOKUP(TRIM(G196),[1]StudentsNames!$B$2:$B$2012,[1]StudentsNames!$F$2:$F$2012,,0),"") ->  | K196: 0
A197: =IFERROR(_xlfn.XLOOKUP(TRIM(G197),[1]StudentsNames!$B$2:$B$2012,[1]StudentsNames!$D$2:$D$2012,,0),"") ->  | D197: =IFERROR(_xlfn.XLOOKUP(TRIM(G197),[1]StudentsNames!$B$2:$B$2012,[1]StudentsNames!$E$2:$E$2012,,0),"") ->  | F197: =IFERROR(_xlfn.XLOOKUP(TRIM(G197),[1]StudentsNames!$B$2:$B$2012,[1]StudentsNames!$F$2:$F$2012,,0),"") ->  | K197: 0
A198: =IFERROR(_xlfn.XLOOKUP(TRIM(G198),[1]StudentsNames!$B$2:$B$2012,[1]StudentsNames!$D$2:$D$2012,,0),"") ->  | D198: =IFERROR(_xlfn.XLOOKUP(TRIM(G198),[1]StudentsNames!$B$2:$B$2012,[1]StudentsNames!$E$2:$E$2012,,0),"") ->  | F198: =IFERROR(_xlfn.XLOOKUP(TRIM(G198),[1]StudentsNames!$B$2:$B$2012,[1]StudentsNames!$F$2:$F$2012,,0),"") ->  | K198: 0
A199: =IFERROR(_xlfn.XLOOKUP(TRIM(G199),[1]StudentsNames!$B$2:$B$2012,[1]StudentsNames!$D$2:$D$2012,,0),"") ->  | D199: =IFERROR(_xlfn.XLOOKUP(TRIM(G199),[1]StudentsNames!$B$2:$B$2012,[1]StudentsNames!$E$2:$E$2012,,0),"") ->  | F199: =IFERROR(_xlfn.XLOOKUP(TRIM(G199),[1]StudentsNames!$B$2:$B$2012,[1]StudentsNames!$F$2:$F$2012,,0),"") ->  | K199: 0
A200: =IFERROR(_xlfn.XLOOKUP(TRIM(G200),[1]StudentsNames!$B$2:$B$2012,[1]StudentsNames!$D$2:$D$2012,,0),"") ->  | D200: =IFERROR(_xlfn.XLOOKUP(TRIM(G200),[1]StudentsNames!$B$2:$B$2012,[1]StudentsNames!$E$2:$E$2012,,0),"") ->  | F200: =IFERROR(_xlfn.XLOOKUP(TRIM(G200),[1]StudentsNames!$B$2:$B$2012,[1]StudentsNames!$F$2:$F$2012,,0),"") ->  | K200: 0
A201: =IFERROR(_xlfn.XLOOKUP(TRIM(G201),[1]StudentsNames!$B$2:$B$2012,[1]StudentsNames!$D$2:$D$2012,,0),"") ->  | D201: =IFERROR(_xlfn.XLOOKUP(TRIM(G201),[1]StudentsNames!$B$2:$B$2012,[1]StudentsNames!$E$2:$E$2012,,0),"") ->  | F201: =IFERROR(_xlfn.XLOOKUP(TRIM(G201),[1]StudentsNames!$B$2:$B$2012,[1]StudentsNames!$F$2:$F$2012,,0),"") ->  | K201: 0
A202: =IFERROR(_xlfn.XLOOKUP(TRIM(G202),[1]StudentsNames!$B$2:$B$2012,[1]StudentsNames!$D$2:$D$2012,,0),"") ->  | D202: =IFERROR(_xlfn.XLOOKUP(TRIM(G202),[1]StudentsNames!$B$2:$B$2012,[1]StudentsNames!$E$2:$E$2012,,0),"") ->  | F202: =IFERROR(_xlfn.XLOOKUP(TRIM(G202),[1]StudentsNames!$B$2:$B$2012,[1]StudentsNames!$F$2:$F$2012,,0),"") ->  | K202: 0
A203: =IFERROR(_xlfn.XLOOKUP(TRIM(G203),[1]StudentsNames!$B$2:$B$2012,[1]StudentsNames!$D$2:$D$2012,,0),"") ->  | D203: =IFERROR(_xlfn.XLOOKUP(TRIM(G203),[1]StudentsNames!$B$2:$B$2012,[1]StudentsNames!$E$2:$E$2012,,0),"") ->  | F203: =IFERROR(_xlfn.XLOOKUP(TRIM(G203),[1]StudentsNames!$B$2:$B$2012,[1]StudentsNames!$F$2:$F$2012,,0),"") ->  | K203: 0
A204: =IFERROR(_xlfn.XLOOKUP(TRIM(G204),[1]StudentsNames!$B$2:$B$2012,[1]StudentsNames!$D$2:$D$2012,,0),"") ->  | D204: =IFERROR(_xlfn.XLOOKUP(TRIM(G204),[1]StudentsNames!$B$2:$B$2012,[1]StudentsNames!$E$2:$E$2012,,0),"") ->  | F204: =IFERROR(_xlfn.XLOOKUP(TRIM(G204),[1]StudentsNames!$B$2:$B$2012,[1]StudentsNames!$F$2:$F$2012,,0),"") ->  | K204: =IFERROR(_xlfn.XLOOKUP(I204,$P$12:$P$14,$Q$12:$Q$14,,1),I204) -> 0
A205: =IFERROR(_xlfn.XLOOKUP(TRIM(G205),[1]StudentsNames!$B$2:$B$2012,[1]StudentsNames!$D$2:$D$2012,,0),"") ->  | D205: =IFERROR(_xlfn.XLOOKUP(TRIM(G205),[1]StudentsNames!$B$2:$B$2012,[1]StudentsNames!$E$2:$E$2012,,0),"") ->  | F205: =IFERROR(_xlfn.XLOOKUP(TRIM(G205),[1]StudentsNames!$B$2:$B$2012,[1]StudentsNames!$F$2:$F$2012,,0),"") ->  | J205: =SUBSTITUTE(SUBSTITUTE(I205,CHAR(13),""),CHAR(10),"") ->  | K205: 0
A206: =IFERROR(_xlfn.XLOOKUP(TRIM(G206),[1]StudentsNames!$B$2:$B$2012,[1]StudentsNames!$D$2:$D$2012,,0),"") ->  | D206: =IFERROR(_xlfn.XLOOKUP(TRIM(G206),[1]StudentsNames!$B$2:$B$2012,[1]StudentsNames!$E$2:$E$2012,,0),"") ->  | F206: =IFERROR(_xlfn.XLOOKUP(TRIM(G206),[1]StudentsNames!$B$2:$B$2012,[1]StudentsNames!$F$2:$F$2012,,0),"") ->  | K206: 0
A207: =IFERROR(_xlfn.XLOOKUP(TRIM(G207),[1]StudentsNames!$B$2:$B$2012,[1]StudentsNames!$D$2:$D$2012,,0),"") ->  | D207: =IFERROR(_xlfn.XLOOKUP(TRIM(G207),[1]StudentsNames!$B$2:$B$2012,[1]StudentsNames!$E$2:$E$2012,,0),"") ->  | F207: =IFERROR(_xlfn.XLOOKUP(TRIM(G207),[1]StudentsNames!$B$2:$B$2012,[1]StudentsNames!$F$2:$F$2012,,0),"") ->  | K207: 0
A208: =IFERROR(_xlfn.XLOOKUP(TRIM(G208),[1]StudentsNames!$B$2:$B$2012,[1]StudentsNames!$D$2:$D$2012,,0),"") ->  | D208: =IFERROR(_xlfn.XLOOKUP(TRIM(G208),[1]StudentsNames!$B$2:$B$2012,[1]StudentsNames!$E$2:$E$2012,,0),"") ->  | F208: =IFERROR(_xlfn.XLOOKUP(TRIM(G208),[1]StudentsNames!$B$2:$B$2012,[1]StudentsNames!$F$2:$F$2012,,0),"") ->  | K208: 0
... 1804 more rows

Sheet SubComp
B6: مقارنة بين متوسط درجات امتحان الامسات
B7: Comparison between the average score in EmSAT test
B8: School code: | D8: 507
B9: Subject / المادة | D9: اللغة العربية | E9: اللغة الانجليزية | F9: الرياضيات | G9: الفيزياء | H9: الكيمياء
D10: Arabic | E10: English | F10: Math | G10: Physics | H10: Chemistry
B11: Average / المُتوسط | C11: 12 Adv | D11: =(SUMIFS(Scores,subjects,D10,SchCod,$D$8,MyStream,C11)-SUMIFS(Scores,subjects,"Absent"))/(COUNTIF(subjects,D10)-COUNTIFS(Scores,"Absent",subjects,D10)) ->  | E11: =IFERROR((SUMIFS(Scores,subjects,E10,SchCod,$D$8)-SUMIFS(Scores,subjects,"Absent"))/(COUNTIF(subjects,E10)-COUNTIFS(Scores,"Absent",subjects,E10)),"") -> 1337.5 | F11: =IFERROR((SUMIFS(Scores,subjects,F10,SchCod,$D$8)-SUMIFS(Scores,subjects,"Absent"))/(COUNTIF(subjects,F10)-COUNTIFS(Scores,"Absent",subjects,F10)),"") -> 1141.666667 | G11: =IFERROR((SUMIFS(Scores,subjects,G10,SchCod,$D$8)-SUMIFS(Scores,subjects,"Absent"))/(COUNTIF(subjects,G10)-COUNTIFS(Scores,"Absent",subjects,G10)),"") -> 825 | H11: =IFERROR((SUMIFS(Scores,subjects,H10,SchCod,$D$8)-SUMIFS(Scores,subjects,"Absent"))/(COUNTIF(subjects,H10)-COUNTIFS(Scores,"Absent",subjects,H10)),"") -> 1450
B12: Average / المُتوسط | C12: 12 Gen | D12: =COUNTIF(subjects,D10)-COUNTIFS(Scores,"Absent",subjects,D10) -> 6 | E12: =COUNTIF(subjects,E10)-COUNTIFS(Scores,"Absent",subjects,E10) -> 8 | F12: =COUNTIF(subjects,F10)-COUNTIFS(Scores,"Absent",subjects,F10) -> 3 | G12: =COUNTIF(subjects,G10)-COUNTIFS(Scores,"Absent",subjects,G10) -> 3 | H12: =COUNTIF(subjects,H10)-COUNTIFS(Scores,"Absent",subjects,H10) -> 1
B23: School Principal | E23: EmSAT Coordinator | G23: Analysis team
B24: =IF(SchoPr="","",SchoPr) -> Salem Mubarak Al Mansouri | E24: =IF(EmSATco="","",EmSATco) -> Dhaif Alla | G24: =IF(AliAbdalla="","",AliAbdalla) -> Ali Abdalla
ALI1975: Mr. Ali Abdalla Abdelmohsen Mahmoud
ALI1976: Al Abbas Bin Abdul Muttalib
